Cogmind - Beta 10.2 @@@ ROGUE MODE // 2021.01.26 @ 21:26:01 Player: blelm Result: Heading to fleet! Performance ------------- Evolutions (9) 4500 Regions Visited (37) 7400 Robots Destroyed (572) 2860 Value Destroyed (30215) 30215 Prototype IDs (117) 2340 Alien Tech Used (16) 3200 Bonus (55985) 55985 TOTAL SCORE: 106500 Bonus ------- High Alert Combat Kills 4979 Follower Combat Kills 657 Network Hubs Disabled 400 Aligned with FarCom 300 Met Imprinter 300 Met Zhirov 300 Met Warlord at Base 500 MAIN.C Attacked Warlord 500 Warlord Defense Kill 1582 A7 Reached Mainframe 300 Read Decrypted Archives 300 Used Core Reset Matrix 3000 Recovered Sigix Corpse 1000 Destroyed MAIN.C Guards 500 Met MAIN.C 5000 Destroyed MAIN.C Shell 5000 Destroyed MAIN.C 10000 Met Architect 300 Started Test 138-B 500 Destroyed A8 300 Destroyed A6 400 Destroyed A5 500 Destroyed A4 700 Destroyed A3 800 Destroyed A2 1000 Destroyed Architect 15000 Win 3000 Friendly Fire -1133 Cogmind --------- Core Integrity 992/1850 Matter 300/300 Energy 365/380 System Corruption 0% Temperature Cool (7) Movement Treading (167) Ox1 Location To Fleet Rendezvous Parts ------- > --- POWER (2) -------- Zero-point Reactor Zero-point Reactor > --- PROPULSION (4) --- Experimental Biometal Heavy Treads Enhanced Armored Heavy Treads > --- UTILITY (16) ----- Desublimator High-capacity Storage Unit High-capacity Storage Unit Spectral Analyzer Experimental Targeting Computer Experimental Target Analyzer Advanced Armor Integrity Analyzer Experimental Weapon Cycler Experimental Powered Armor Heavy Regenerative Plating SHELL Armor AEGIS Remote Shield > --- WEAPON (4) ------- Helical Railgun Helical Railgun Hypervelocity Linear Accelerator Hypervelocity Linear Accelerator > --- INVENTORY (24) --- Quantum Reactor Zero-point Reactor Advanced Heavy Treads Desublimator Experimental Energy Well (1000) Experimental Energy Well (1000) Experimental Matter Compressor (500) Experimental Matter Compressor (500) Experimental Weapon Cycler Experimental Powered Armor Medium Regenerative Plating Beam Splitter EM Dispersion Field Experimental Force Field Experimental Force Field Transdimensional Reconstructor Neutron Cannon Hypervelocity Linear Accelerator Hypervelocity Linear Accelerator Hypervelocity Linear Accelerator Sigix Corpse Peak State ------------ > --- POWER ------------ Zero-point Reactor Zero-point Reactor > --- PROPULSION ------- Experimental Biometal Heavy Treads Enhanced Armored Heavy Treads > --- UTILITY ---------- Desublimator High-capacity Storage Unit High-capacity Storage Unit Experimental Matter Compressor Spectral Analyzer Experimental Targeting Computer Experimental Target Analyzer Advanced Armor Integrity Analyzer Experimental Weapon Cycler Experimental Powered Armor Heavy Regenerative Plating SHELL Armor AEGIS Remote Shield > --- WEAPON ----------- Helical Railgun Helical Railgun Hypervelocity Linear Accelerator Hypervelocity Linear Accelerator > --- INVENTORY -------- Quantum Reactor Zero-point Reactor Advanced Heavy Treads Desublimator Experimental Energy Well Experimental Energy Well Experimental Matter Compressor Experimental Weapon Cycler Experimental Powered Armor Medium Regenerative Plating Beam Splitter EM Dispersion Field Experimental Force Field Experimental Force Field Transdimensional Reconstructor Neutron Cannon Hypervelocity Linear Accelerator Hypervelocity Linear Accelerator Hypervelocity Linear Accelerator Sigix Corpse [Rating: 249] Favorites ----------- Power Zero-point Reactor Engine Heavy Deuterium Engine Power Core Enhanced Fission Core Reactor Zero-point Reactor Propulsion Light Treads Treads Light Treads Leg Aluminum Leg Utility High-capacity Storage Unit Device Advanced Transmission Jammer Storage High-capacity Storage Unit Processor Experimental Signal Interpreter Hackware Improved Hacking Suite Protection SHELL Armor Artifact Matter Drive Weapon Improved KE Penetrator Energy Gun Precision Shock Rifle Energy Cannon Compact HERF Cannon Ballistic Gun Improved KE Penetrator Ballistic Cannon Hypervelocity Linear Accelerator Launcher Mini Grenade Launcher Special Weapon Mining Laser Slashing Weapon Sigix Broadsword Build | -11 -10 -10 -9 -9 -9 -8 -8 -7 -7 -7 -7 -6 -6 -6 -6 -6 -6 -5 -5 -5 -5 -4 -4 -4 -4 -4 -4 -4 -3 -3 -3 -2 -2 -2 -1 -1 -1 ------- Run | Scr Mat Min Mat Min Exi Min Mat Fac Low Low Zio Pro Fac Ext Cet Arc Hub Fac Upp Upp Zhi Pro Fac Was Fac Upp Upp War Pro Res Qua Res Tes Sec Acc Com Ac0 Slots Evolved 18 | . . . 2 . . . 2 2 . . . . 2 . . . . 2 . . . . 2 . . . . . . 2 . 2 . . 2 . . Power 1 | . . . . . . . . . . . . . . . . . . . . . . . 1 . . . . . . . . . . . . . . Propulsion 2 | . . . . . . . 1 . . . . . . . . . . 1 . . . . . . . . . . . . . . . . . . . Utility 13 | . . . 1 . . . 1 2 . . . . 2 . . . . 1 . . . . 1 . . . . . . 2 . 1 . . 2 . . Weapon 2 | . . . 1 . . . . . . . . . . . . . . . . . . . . . . . . . . . . 1 . . . . . Parts Attached 987 | 2 10 4 36 1 19 3 46 41 2 . 5 5 45 19 8 . 38 27 6 1 7 9 55 8 67 6 13 14 1 26 59 12 52 82 32 159 67 Power 40 | . . 1 3 . 4 . . 2 . . . . . . 1 . 1 . . . 1 . 3 2 1 . . 1 . . 2 . . 2 4 9 3 Engine 7 | . . 1 3 . 1 . . 2 . . . . . . . . . . . . . . . . . . . . . . . . . . . . . Core 3 | . . . . . 1 . . . . . . . . . . . . . . . . . 1 . 1 . . . . . . . . . . . . Reactor 30 | . . . . . 2 . . . . . . . . . 1 . 1 . . . 1 . 2 2 . . . 1 . . 2 . . 2 4 9 3 Propulsion 70 | 2 3 . 7 . 1 2 12 5 . . 2 . 3 2 1 . . 1 . . . . 2 . . . . . . 1 1 1 1 2 4 15 2 Treads 70 | 2 3 . 7 . 1 2 12 5 . . 2 . 3 2 1 . . 1 . . . . 2 . . . . . . 1 1 1 1 2 4 15 2 Leg . | . . . . . . . . . . . . . . . . . . . . . . . . . . . . . . . . . . . . . . Wheel . | . . . . . . . . . . . . . . . . . . . . . . . . . . . . . . . . . . . . . . Hover . | . . . . . . . . . . . . . . . . . . . . . . . . . . . . . . . . . . . . . . Flight . | . . . . . . . . . . . . . . . . . . . . . . . . . . . . . . . . . . . . . . Utility 526 | . 4 . 5 . 7 . 9 9 . . . . 12 5 2 . 14 15 4 1 6 4 28 5 43 5 4 11 1 17 31 7 39 75 24 103 36 Device 348 | . . . 1 . 1 . 5 1 . . . . 5 2 . . 11 9 2 1 2 2 20 5 26 2 3 6 1 9 22 5 30 64 21 69 23 Storage 44 | . 3 . 1 . 2 . 1 3 . . . . . . . . . . . . 1 1 1 . 1 . . 1 . . . 1 1 7 1 15 4 Processor 27 | . . . 1 . 1 . . 2 . . . . 1 1 . . . . . . . . 1 . 1 . . 3 . . . 1 . . 1 11 3 Hackware 7 | . . . . . . . . . . . . . 2 . . . 1 . . . . . 1 . 1 . . . . 2 . . . . . . . Protection 99 | . 1 . 2 . 3 . 3 3 . . . . 4 2 2 . 2 6 2 . 3 1 5 . 14 3 1 1 . 6 9 . 8 4 1 7 6 Artifact 1 | . . . . . . . . . . . . . . . . . . . . . . . . . . . . . . . . . . . . 1 . Weapon 351 | . 3 3 21 1 7 1 25 25 2 . 3 5 30 12 4 . 23 11 2 . . 5 22 1 23 1 9 2 . 8 25 4 12 3 . 32 26 Energy Gun 55 | . . . 1 . . . 14 8 . . 1 2 13 5 3 . 3 . . . . 1 1 . . . . . . . . . 1 1 . 1 . Energy Cannon 91 | . . . 4 . . . . 3 . . . 1 . . . . 9 6 1 . . 3 11 . 11 1 6 1 . 3 10 3 6 2 . 7 3 Ballistic Gun 130 | . 3 2 13 . 5 . 2 6 1 . 1 . 7 6 1 . 11 5 . . . . 10 1 8 . . . . 4 11 . 5 . . 15 13 Ballistic Cannon 13 | . . . . . . . . . . . . . . . . . . . . . . . . . . . . . . . . . . . . 3 10 Launcher 32 | . . . 2 1 2 1 2 1 1 . 1 2 2 1 . . . . 1 . . 1 . . 4 . 3 1 . 1 1 . . . . 4 . Special Weapon 9 | . . 1 1 . . . 7 . . . . . . . . . . . . . . . . . . . . . . . . . . . . . . Impact Weapon . | . . . . . . . . . . . . . . . . . . . . . . . . . . . . . . . . . . . . . . Slashing Weapon 21 | . . . . . . . . 7 . . . . 8 . . . . . . . . . . . . . . . . . 3 1 . . . 2 . Piercing Weapon . | . . . . . . . . . . . . . . . . . . . . . . . . . . . . . . . . . . . . . . Special Melee Weapon . | . . . . . . . . . . . . . . . . . . . . . . . . . . . . . . . . . . . . . . Unidentified Prototypes 79 | . . . 3 . 4 . 1 2 . . 1 . 1 1 4 . 1 . . . 3 . 2 1 . . . 5 . 3 3 2 3 6 1 23 9 Parts Lost 46 | . . 2 4 . 6 1 10 4 . . . . 2 . . . 1 1 . . . . . . 1 . . . . . 1 . . . . 1 12 Power 7 | . . 1 1 . 2 . . 1 . . . . . . . . . . . . . . . . 1 . . . . . . . . . . . 1 Propulsion 10 | . . . 1 . 1 1 4 1 . . . . . . . . . . . . . . . . . . . . . . . . . . . . 2 Utility 8 | . . . . . 1 . 1 . . . . . 1 . . . . 1 . . . . . . . . . . . . . . . . . 1 3 Weapon 21 | . . 1 2 . 2 . 5 2 . . . . 1 . . . 1 . . . . . . . . . . . . . 1 . . . . . 6 Highest Loss Streak 5 | . . 1 1 . 5 1 4 3 . . . . 1 . . . 1 1 . . . . . . 1 . . . . . 1 . . . . 1 3 Average Slot Usage (%) 87 | . 96 99 98 100 96 99 99 99 100 100 100 100 98 94 95 93 92 85 82 82 79 82 84 88 87 89 88 87 84 81 77 77 77 79 75 73 80 Engine 2 | . 14 13 10 11 5 . . 5 7 7 7 7 6 6 1 . . . . . . . . . . . . . . . . . . . . . . Reactor 4 | . . . . . 2 11 9 1 . . . . . . 4 6 6 5 5 5 5 5 8 9 8 5 5 5 5 4 4 4 4 6 7 7 7 Treads 13 | . 28 28 21 22 22 21 27 23 23 23 23 23 20 20 15 13 13 11 11 11 11 11 9 10 10 10 10 10 10 8 8 8 7 8 7 7 7 Device 9 | . . . 1 . . . 4 7 7 7 7 7 10 12 6 6 11 6 10 10 5 4 6 9 12 12 12 14 15 15 16 20 17 16 15 10 12 Storage 18 | . 21 14 17 22 15 22 24 23 23 23 23 23 20 20 20 20 20 17 17 17 20 23 21 21 21 21 21 21 21 19 19 17 19 20 16 17 10 Processor 6 | . . . 1 . . . . 7 7 7 7 7 6 6 13 13 6 5 5 5 5 5 5 9 5 5 5 5 5 4 4 4 4 4 4 12 15 Hackware 3 | . . . . . . . . . . . . . 6 . . . 5 5 5 5 5 5 8 5 6 10 7 5 5 8 9 8 8 8 8 . . Protection 6 | . 3 14 11 11 17 11 6 6 7 7 7 7 6 7 13 13 7 13 5 5 5 5 5 5 5 2 5 5 5 4 1 . . . 4 4 10 Energy Gun 3 | . 1 . . . . . 20 9 16 15 15 21 13 10 20 20 3 . . . . . . . . . . . . . . . . . . . . Energy Cannon 4 | . . . 9 . . . . 4 . . . . . . . . 2 2 4 5 5 10 12 . 5 8 9 9 5 8 4 5 7 7 8 5 . Ballistic Gun 7 | . 26 22 22 22 27 22 2 1 1 7 7 . 3 6 . . 13 13 11 11 11 4 2 15 9 6 5 5 5 4 4 2 . . . 2 8 Slashing Weapon 1 | . . . . . . . . 5 . . . . 2 1 . . . . . . . . . . . . . . . . 1 4 4 4 4 3 . Naked Turns . | . . . . . . . . . . . . . . . . . . . . . . . . . . . . . . . . . . . . . . Heaviest Build 264 | 12 49 42 82 79 93 91 132 135 130 129 129 130 137 138 147 145 150 176 167 162 192 188 215 202 242 210 210 218 212 224 246 227 256 259 245 264 234 Greatest Support 175 | 40 40 40 40 40 40 40 60 68 68 68 76 76 84 86 110 110 110 160 160 160 160 160 160 155 155 155 155 155 155 155 155 155 165 170 170 175 170 Greatest Overweight (x) 42 | . 1 1 2 1 2 2 2 2 1 1 42 1 1 1 1 1 1 1 1 1 1 1 1 1 1 1 1 1 1 1 1 1 1 1 2 2 1 Average Overweight (x) 1 | . . . 1 1 1 2 1 1 1 1 4 1 1 1 1 1 1 . 1 1 . 1 1 1 1 1 1 1 1 1 1 1 1 1 1 1 1 Largest Inventory Capacity 48 | 6 16 12 20 20 20 20 28 28 28 28 28 28 28 28 28 28 28 28 28 28 36 36 36 36 36 36 36 36 36 36 36 36 36 40 40 48 24 Average Capacity 30 | 6 10 12 16 20 15 20 26 28 28 28 28 28 28 28 28 28 28 28 28 28 31 36 36 36 36 36 36 36 36 36 36 36 36 36 40 39 24 Most Carried 40 | 6 12 12 20 20 20 20 28 28 28 28 28 28 28 28 28 28 28 28 28 28 31 31 36 36 36 36 36 36 36 36 36 36 36 39 40 40 24 Average Carried 29 | 6 9 10 15 19 14 19 24 25 28 28 27 28 27 27 27 28 27 27 27 28 29 30 35 35 35 35 35 35 36 34 35 35 35 35 39 35 20 Final Capacity 40 | 6 12 12 20 20 20 20 28 28 28 28 28 28 28 28 28 28 28 28 28 28 36 36 36 36 36 36 36 36 36 36 36 36 36 40 40 24 24 Final Carried 40 | 6 12 10 20 20 20 20 24 28 28 28 28 28 28 27 28 28 28 28 28 28 30 31 35 35 36 36 36 36 36 36 36 36 36 39 40 24 22 Class Distribution -------------------- 36% | Hauler-Mutant 16% | Alien-Mutant 14% | Hacker-Mutant 8% | Alien-Gunner 8% | Hauler-Tank 5% | Mutant Dominant Class ---------------- Mutant | -10/Materials Mutant | -10/Mines Hauler-Tank | -9/Materials Hauler-Mutant | -9/Mines Mutant | -9/Exiles Hauler-Mutant | -8/Mines Hauler-Tank | -8/Materials Hauler-Mutant | -7/Factory Hauler-Mutant | -7/Lower Caves Hauler-Mutant | -7/Lower Caves Hauler-Mutant | -7/Zion Hauler-Tank | -6/Proximity Caves Hauler-Tank | -6/Factory Scavenger-Tank | -6/Extension Scavenger-Tank | -6/Cetus Scavenger-Tank | -6/Archives Scavenger-Skirmisher | -6/Hub_04(d) Scavenger-Mutant | -5/Factory Hauler-Mutant | -5/Upper Caves Hauler-Mutant | -5/Upper Caves Hauler-Mutant | -5/Zhirov Hauler-Mutant | -4/Proximity Caves Hauler-Mutant | -4/Factory Hauler-Skirmisher | -4/Waste Hauler-Mutant | -4/Factory Hauler-Mutant | -4/Upper Caves Hauler-Mutant | -4/Upper Caves Hauler-Mutant | -4/Warlord Hauler-Mutant | -3/Proximity Caves Hacker-Mutant | -3/Research Hacker-Mutant | -3/Quarantine Hacker-Mutant | -2/Research Hacker-Mutant | -2/Testing Hacker-Mutant | -2/Section 7 Alien-Mutant | -1/Access Alien-Mutant | -1/Command Alien-Gunner | -1/Access_0 Resources | -11 -10 -10 -9 -9 -9 -8 -8 -7 -7 -7 -7 -6 -6 -6 -6 -6 -6 -5 -5 -5 -5 -4 -4 -4 -4 -4 -4 -4 -3 -3 -3 -2 -2 -2 -1 -1 -1 ----------- Run | Scr Mat Min Mat Min Exi Min Mat Fac Low Low Zio Pro Fac Ext Cet Arc Hub Fac Upp Upp Zhi Pro Fac Was Fac Upp Upp War Pro Res Qua Res Tes Sec Acc Com Ac0 Matter Collected 18841 | 228 219 165 746 22 898 164 616 545 53 . 50 100 696 487 120 . 691 481 88 20 70 149 864 258 1380 346 127 794 20 157 1425 70 718 958 320 3661 1135 Remotely 1454 | . . . . . . . . . . . . . . . . . . . . . . . 120 . 672 . . 344 . . 123 . 30 60 105 . . Salvage Created 35374 | 88 350 85 1326 8 281 157 2228 1374 296 . . 858 942 926 546 . 1555 661 291 . 93 334 1677 1749 2527 169 223 647 40 515 1249 . 1683 4999 953 2882 3662 Parts 1658 | 1 16 7 96 6 57 22 111 69 13 . . 35 62 35 30 . 72 33 7 . 3 13 48 28 135 6 20 27 . 18 88 . 92 180 45 105 178 Haulers Intercepted 22 | . . . 5 . . . 2 1 . . . . . 1 . . 5 . . . . . 4 . . . . . . . . . . 4 . . . Recyclers Shooed 23 | . 2 . 4 . . . . 2 . . . . 2 . . . . . . . . . 4 . 7 . . . . . . . . . . 2 . Parts Field Recycled 24 | . . . . . . . . . . . . . . . . . . 9 . . . . . 2 . . . . . . 4 2 . . . 7 . Retrieved Matter 852 | . . . . . . . . . . . . . . . . . . 129 . . . . . 226 . . . . . . 329 54 . . . 114 . Parts Self-Destructed 136 | . . . . . . . . . 7 6 9 13 . . . . . . . . 3 . . . . 2 7 89 . . . . . . . . . Prevented 86 | . . . . . . . . . 6 . . 21 . . . . . . 7 . . 10 . . . 4 11 27 . . . . . . . . . Kills | -11 -10 -10 -9 -9 -9 -8 -8 -7 -7 -7 -7 -6 -6 -6 -6 -6 -6 -5 -5 -5 -5 -4 -4 -4 -4 -4 -4 -4 -3 -3 -3 -2 -2 -2 -1 -1 -1 ------- Run | Scr Mat Min Mat Min Exi Min Mat Fac Low Low Zio Pro Fac Ext Cet Arc Hub Fac Upp Upp Zhi Pro Fac Was Fac Upp Upp War Pro Res Qua Res Tes Sec Acc Com Ac0 Combat Hostiles Destroyed 435 | . 6 3 19 3 5 12 42 18 5 . . 17 16 8 7 . 11 11 4 . . 4 12 6 30 1 11 12 1 6 18 . 19 48 11 26 43 Melee 11 | . . . . . . . . . . . . . . . . . . . . . . . . . . . . . . . . . . 9 2 . . Guns 175 | . 6 3 11 . 1 . 24 8 3 . . 9 11 3 4 . 8 11 . . . . 4 6 17 . . . . 1 14 . 5 . . 2 24 Cannons 69 | . . . 7 . . . . 4 . . . . . . . . 1 . . . . . 1 . . 1 . . . 1 . . 10 8 5 12 19 AOE 88 | . . . 1 3 4 12 15 5 2 . . 4 3 4 . . . . . . . 3 . . 7 . 9 9 . . . . . 1 . 6 . Classes Destroyed 24 | 1 3 1 4 . 3 3 2 1 . . . . . 1 . . . . . . . . . 1 . . . 3 . . . . . 1 . . . Worker 32 | . . 1 3 . . . 4 2 . . . . 1 . . . 7 . . . . . 1 . 3 . . . . . . . 3 5 1 1 . Builder 14 | . . . . . . 1 . 3 . . . . 2 . . . . . . . . . . . 3 . . . . . . . 3 2 . . . Tunneler 3 | . . . . . . 2 . 1 . . . . . . . . . . . . . . . . . . . . . . . . . . . . . Hauler 22 | . . . 5 . . . 2 1 . . . . . 1 . . 5 . . . . . 4 . . . . . . . . . . 4 . . . Recycler 24 | 1 2 1 3 . . . 2 3 . . . . 1 2 . . 1 . . . . . 2 . 3 . . . . . . . . . . 3 . Mechanic 3 | . . . 1 . . . 1 . . . . . . . . . . . . . . . . . . . . . . . . . . . . 1 . Operator 5 | . . . 1 . . . . . . . . . . . . . . 1 . . . . . . 1 . . . . . . . 1 1 . . . Turret 1 | . . . . . 1 . . . . . . . . . . . . . . . . . . . . . . . . . . . . . . . . Watcher 28 | . 1 . 5 . . . 2 . . . . . 1 1 1 . 4 . . . . . 1 . 3 . . . . 1 2 . 2 4 . . . Swarmer 71 | . 3 3 6 3 . 9 4 . . . . 8 8 3 2 . . 2 . . . . . . 4 . 9 2 1 . . . . . . 4 . Saboteur 2 | . . . . . . . . . . . . . . . . . . . . . . . . . . . . 2 . . . . . . . . . Grunt 129 | . 3 . 9 . . 2 24 11 4 . . 5 2 2 1 . 5 5 3 . . 4 3 . 11 . . 5 . . 3 . 3 16 4 4 . Brawler 10 | . . . . . . 1 2 . . . . 1 . . . . . . 1 . . . . . . . . . . . . . . 4 1 . . Duelist 8 | . . . . . . . 1 . . . . 2 . . 1 . . . . . . . . . . . . . . . 1 . . 3 . . . Protector 1 | . . . . . . . . . . . . . . . . . . . . . . . . . . . . . . . . . . 1 . . . Sentry 42 | . . . 4 . . . 9 3 . . . 1 3 1 . . 2 1 . . . . 3 . 4 1 . . . 1 . . . 6 1 2 . Hunter 20 | . . . . . . . 2 1 . . . . 1 . . . 2 . . . . . 2 . . . 2 . . 4 . . 4 . . 2 . Programmer 77 | . . . . . . . . 3 1 . . . 2 1 . . 2 3 . . . . 4 . 10 . . . . 1 14 . 12 12 5 7 . Behemoth 3 | . . . . . . . . . . . . . . 1 . . . . . . . . . . 1 . . . . . . . . . . 1 . Compactor 6 | . . . . . . . . . . . . . . . . . . . . . . . . 6 . . . . . . . . . . . . . Cetus Guard 3 | . . . . . . . . . . . . . . . 3 . . . . . . . . . . . . . . . . . . . . . . S7 Guard 4 | . . . . . . . . . . . . . . . . . . . . . . . . . . . . . . . . . . 4 . . . M Guard 2 | . . . . . . . . . . . . . . . . . . . . . . . . . . . . . . . . . . . . 2 . Enhanced Grunt 26 | . . . . . . . . . . . . . . . . . . . . . . . . . . . . . . . . . . . . . 26 Enhanced Sentry 2 | . . . . . . . . . . . . . . . . . . . . . . . . . . . . . . . . . . . . . 2 Enhanced Hunter 8 | . . . . . . . . . . . . . . . . . . . . . . . . . . . . . . . . . . . . . 8 Combat Programmer 2 | . . . . . . . . . . . . . . . . . . . . . . . . . . . . . . . . . . . . 2 . Striker 1 | . . . . . . . . . . . . . . . . . . . . . . . . . . . . 1 . . . . . . . . . Executioner 4 | . . . . . . . . . . . . . . . . . . . . . . . . . . . . 2 . . . . . 2 . . . Zionite 3 | . . . . . 3 . . . . . . . . . . . . . . . . . . . . . . . . . . . . . . . . Assembled 4 | . . . . . 4 . . . . . . . . . . . . . . . . . . . . . . . . . . . . . . . . Thug 1 | . . . . . . . . . . . . . . 1 . . . . . . . . . . . . . . . . . . . . . . . Savage 2 | . . . . . . . . . . . . . . 1 1 . . . . . . . . . . . . . . . . . . . . . . Guerrilla 1 | . . . . . . . . . . . . . . 1 . . . . . . . . . . . . . . . . . . . . . . . Best Kill Streak 10 | 1 2 4 5 3 4 5 7 4 4 . . 7 6 4 4 . 5 3 4 . . 4 3 2 10 1 5 6 1 2 5 . 5 9 4 5 4 Combat Bots Only 9 | . 2 4 3 3 4 3 6 3 4 . . 7 4 4 4 . 3 3 4 . . 4 2 2 7 1 5 6 1 2 5 . 3 9 4 4 4 Max Kills in Single Turn 4 | 1 1 1 2 3 1 4 3 3 1 . . 2 2 4 1 . 2 3 2 . . 2 1 1 4 1 3 3 1 1 1 . 2 2 1 3 2 Gunslinging 1 | . . . . . . . 1 . . . . 1 . . . . . 1 . . . . . . . . . . . . . . . . . . . Exploded 4 | . . . 1 3 1 3 3 2 1 . . 1 2 4 . . . . . . . 2 . . 3 . 3 3 . . . . . 1 . 2 . Melee 1 | . . . . . . . . . . . . . . . . . . . . . . . . . . . . . . . . . . 1 1 . . Uniques/NPCs Destroyed 13 | . . . . . 4 . . . . . . . . . . . . . . . . . . . . . . . . . . . . . . 2 7 8R-AWN (-9/Exiles) EX-DEC (-9/Exiles) EX-HEX (-9/Exiles) EX-BIN (-9/Exiles) MAIN.C Shell (-1/Command) MAIN.C (-1/Command) A8 (-1/Access_0) A6 (-1/Access_0) A5 (-1/Access_0) A4 (-1/Access_0) A2 (-1/Access_0) A3 (-1/Access_0) Architect (-1/Access_0) Combat | -11 -10 -10 -9 -9 -9 -8 -8 -7 -7 -7 -7 -6 -6 -6 -6 -6 -6 -5 -5 -5 -5 -4 -4 -4 -4 -4 -4 -4 -3 -3 -3 -2 -2 -2 -1 -1 -1 -------- Run | Scr Mat Min Mat Min Exi Min Mat Fac Low Low Zio Pro Fac Ext Cet Arc Hub Fac Upp Upp Zhi Pro Fac Was Fac Upp Upp War Pro Res Qua Res Tes Sec Acc Com Ac0 Damage Taken 28184 | . 232 315 913 59 1201 260 1926 1012 138 . . 412 679 450 49 . 819 710 185 . . 171 797 . 1578 56 174 101 56 218 245 . 878 1207 174 2685 10484 Core 2178 | . 50 26 82 . 136 7 298 178 . . . 20 51 40 12 . 126 39 . . . . 63 . 45 . . 5 11 1 25 . 21 54 13 55 820 Absorbed by Shields 15207 | . . . . . . . . . . . . . . 54 49 . . . . . . . . . 378 60 180 104 57 230 172 . 726 923 189 1956 10129 Reduced by Siege Mode 991 | . . . . . . . . . . . . . . . . . 33 40 . . . 10 45 . 120 . 8 . . 8 39 . 27 62 1 145 453 Core Remaining (%) 75 | 100 . 69 . . . 43 45 . . . . 71 . . . . 73 . . . . 96 . . . . . . 89 . 98 . . 95 . . 53 Volleys Fired 2025 | 8 26 14 69 1 85 14 86 54 8 . . 33 36 27 15 . 57 41 5 15 1 27 93 19 163 16 56 36 6 51 89 10 151 226 49 146 292 Largest 4 | 2 2 2 3 1 3 1 3 3 2 . . 3 3 3 3 . 3 3 1 1 1 1 3 3 3 1 2 1 1 3 3 1 2 2 1 4 4 Hottest 278 | 60 40 120 114 30 69 33 150 165 110 . . 165 165 170 170 . 170 105 98 98 98 98 238 100 180 110 134 110 110 114 186 110 240 240 120 164 278 Shots Fired 3870 | 16 52 26 195 1 139 14 182 95 11 . . 63 97 71 44 . 125 85 5 15 1 27 150 57 234 16 57 36 6 59 171 10 171 229 49 233 1128 Gun 2440 | 16 52 24 142 . 129 . 148 68 8 . . 46 95 70 44 . 102 72 . . . . 44 57 152 . . . . 12 126 . 43 4 . 116 870 Cannon 1297 | . . . 47 . . . . 24 . . . 7 . . . . 23 13 1 15 1 20 106 . 73 16 52 24 3 47 42 10 128 225 49 113 258 Launcher 112 | . . . 3 1 10 14 18 3 3 . . 10 2 1 . . . . 4 . . 7 . . 9 . 5 12 3 . 3 . . . . 4 . Special 21 | . . 2 3 . . . 16 . . . . . . . . . . . . . . . . . . . . . . . . . . . . . . Kinetic 2260 | 8 52 24 142 . 129 . 7 19 2 . . . 18 45 . . 78 72 . . . . 41 57 152 . . . . 12 126 . 40 . . 116 1120 Thermal 689 | . . 2 50 . . . 16 9 . . . 7 . . . . 23 13 1 15 1 20 51 . 50 12 46 24 3 31 35 10 103 86 21 52 8 Explosive 62 | . . . 3 1 10 14 18 3 . . . . 2 1 . . . . . . . . . . 2 . 4 . . . . . . . . 4 . Electromagnetic 859 | 8 . . . . . . 141 64 9 . . 56 77 25 44 . 24 . 4 . . 7 58 . 30 4 7 12 3 16 10 . 28 143 28 61 . Robot Hit Streak 47 | 4 7 3 14 6 15 2 26 16 13 . . 41 20 13 16 . 44 25 22 . 23 27 19 20 25 1 4 6 3 20 22 . 31 30 17 28 47 Robot Miss Streak 5 | 1 4 4 3 . 3 1 5 3 1 . . 1 4 5 1 . 4 1 . . . . 3 2 3 3 2 2 . 2 1 . 1 2 3 2 4 Penetration Max 2 | . . . . . 1 . . 1 . . . . . . . . 1 1 . . . . . . 2 . . . . . 1 . 1 . . . 1 Secondary Targets 28 | . . . 1 . . . 2 . . . . 2 1 . 1 . 1 2 . . . . 1 . 1 . . . . . 4 . 1 . . . 11 Max Gunslinging Chain 1 | . . . 1 . . . 1 . . . . 1 1 . 1 . 1 1 . . . . 1 . 1 . . . . . 1 . 1 . . . 1 Capacitor 564 | . . . . . . . . . . . . . . . . . . . . . . . . . 13 . . . . 39 27 10 103 210 49 113 . Shots Hit Robots 2621 | 11 30 13 127 1 93 2 123 70 8 . . 50 75 65 37 . 84 59 1 . 1 4 81 44 130 2 6 2 3 23 122 . 89 170 33 205 857 Core Hits 1381 | 3 14 4 51 3 34 18 114 49 8 . . 35 41 81 17 . 42 21 3 . 1 8 30 13 66 3 13 34 1 6 40 . 31 68 14 102 413 Critical Hits 487 | . . . 9 . 16 . 5 7 1 . . . . . . . 14 20 . . . . 4 12 33 . 1 . . 2 4 . 2 10 . 19 328 Critical Kills 77 | . . . 5 . 1 . 4 4 1 . . . . . . . 6 5 . . . . 1 5 10 . . . . . 1 . 1 5 . 1 27 Critical Parts Destroyed 232 | . . . 3 . 8 . 1 3 . . . . . . . . 7 13 . . . . 3 3 22 . 1 . . 2 3 . 1 4 . 6 152 Melee Attacks 191 | . . . . . . . . 19 . . . . 16 1 . . . . . . . . . . . . . . . . . . 7 60 17 71 . Impact . | . . . . . . . . . . . . . . . . . . . . . . . . . . . . . . . . . . . . . . Slashing 191 | . . . . . . . . 19 . . . . 16 1 . . . . . . . . . . . . . . . . . . 7 60 17 71 . Piercing . | . . . . . . . . . . . . . . . . . . . . . . . . . . . . . . . . . . . . . . Sneak Attacks 17 | . . . . . . . . 1 . . . . 2 . . . . . . . . . . . . . . . . . . . 3 8 1 2 . Combat Hostiles . | . . . . . . . . . . . . . . . . . . . . . . . . . . . . . . . . . . . . . . Follow-up Attacks . | . . . . . . . . . . . . . . . . . . . . . . . . . . . . . . . . . . . . . . Damage Inflicted 88452 | 148 429 173 2180 129 1987 1006 4757 2257 445 . . 1581 2294 1979 964 . 2422 1848 458 . 42 484 2559 1085 5819 136 1105 1663 92 890 4711 . 4720 8711 1849 9159 20370 Guns 44630 | 107 420 116 1364 . 1579 . 1983 1084 134 . . 669 1388 1480 713 . 2130 1756 . . . . 607 1085 3158 . . . . 345 3883 . 1423 . . 3215 15991 Cannons 22230 | . . . 508 . . . . 308 . . . . . . . . 175 . . . 42 . 1691 . 787 136 159 . . 540 478 . 2477 5616 1284 3650 4379 Explosions 15194 | 37 . . 228 129 408 950 2686 663 275 . . 912 519 484 251 . 100 . 458 . . 484 . . 1723 . 946 1663 92 . 267 . . 100 . 1819 . Melee 5149 | . . . . . . . . 163 . . . . 278 . . . . . . . . . . . . . . . . . . . 745 2923 565 475 . Ramming 1249 | 4 9 57 80 . . 56 88 39 36 . . . 109 15 . . 17 92 . . . . 261 . 151 . . . . 5 83 . 75 72 . . . Kinetic 42550 | 24 420 116 1364 . 1579 . 50 297 28 . . . 194 1072 . . 1636 1756 . . . . 535 1085 3158 . . . . 345 3883 . 1423 . . 3215 20370 Thermal 8897 | 37 . . 508 . . . 414 401 . . . 279 97 . 251 . 240 . . . 42 84 36 . 798 37 . 387 . . 249 . 1328 804 414 2491 . Explosive 8217 | . . . 228 129 408 950 2272 262 . . . . 422 484 . . . . . . . . . . 353 . 890 . . . . . . . . 1819 . Electromagnetic 22390 | 83 . . . . . . 1933 1095 381 . . 1302 1194 408 713 . 529 . 458 . . 400 1727 . 1359 99 215 1276 92 540 496 . 1149 4912 870 1159 . Impact . | . . . . . . . . . . . . . . . . . . . . . . . . . . . . . . . . . . . . . . Slashing 5149 | . . . . . . . . 163 . . . . 278 . . . . . . . . . . . . . . . . . . . 745 2923 565 475 . Piercing . | . . . . . . . . . . . . . . . . . . . . . . . . . . . . . . . . . . . . . . Highest Corruption 4 | . 4 4 . . . . 2 2 2 2 2 . 1 . . . 2 2 . . . . 2 . 3 3 . 1 2 1 2 . 1 . . . . Average Corruption 2 | . 3 4 . . . . 2 1 2 2 2 . 1 . . . 2 1 . . . . 1 . 2 1 . 1 1 1 1 . 1 . . . . Corruption Purged 13 | . . . . . . . . . . . . . 1 . . . . 2 . . . . 3 . . 3 . . . . 3 . 1 . . . . Effects 119 | . 3 41 . . . . 15 6 7 3 1 . . . . . . . . . . . 6 . 30 2 . . 1 1 2 . 1 . . . . Message Errors 31 | . 1 11 . . . . 5 2 2 1 . . . . . . . . . . . . 3 . 4 1 . . . . 1 . . . . . . Matter Fused 20 | . . 13 . . . . . . . . . . . . . . . . . . . . . . 7 . . . . . . . . . . . . Heat Flow Errors 16 | . . 7 . . . . 1 . 3 2 . . . . . . . . . . . . . . 1 1 . . . . 1 . . . . . . Energy Discharges 18 | . 1 2 . . . . 4 2 1 . . . . . . . . . . . . . 1 . 6 . . . 1 . . . . . . . . Data Loss (minor) 14 | . . 6 . . . . 2 2 . . 1 . . . . . . . . . . . . . 2 . . . . 1 . . . . . . . Targeting Errors 17 | . 1 2 . . . . 2 . 1 . . . . . . . . . . . . . 2 . 8 . . . . . . . 1 . . . . Weapon Failures 3 | . . . . . . . 1 . . . . . . . . . . . . . . . . . 2 . . . . . . . . . . . . Overload Shots 7 | . . . . . . . . . . . . . . . . . . . . . . . . . . . . . . . . . 3 4 . . . Overflow Damage 2708 | 7 . . 31 . 16 80 115 16 28 . . 5 102 53 7 . 7 . 16 . . . 15 . 99 . 74 44 10 . . . 625 489 35 834 . Projectiles 796 | . . . 31 . . . . . . . . . . . . . . . . . . . 15 . 38 . . . . . . . 230 156 29 297 . Explosions 742 | 7 . . . . 16 80 115 16 . . . 5 99 53 7 . 7 . 16 . . . . . 61 . 74 44 10 . . . . . . 132 . Melee 1170 | . . . . . . . . . 28 . . . 3 . . . . . . . . . . . . . . . . . . . 395 333 6 405 . Knockbacks 43 | . . 1 . . . 1 . . . . . . 2 1 . . 1 . . . . . 2 . 2 . . . . . 2 . 1 . . . 30 Impact 13 | . . 1 . . . 1 . . . . . . 2 1 . . 1 . . . . . 2 . 2 . . . . . 2 . 1 . . . . Kinetic 29 | . . . . . . . . . . . . . . . . . . . . . . . . . . . . . . . . . . . . . 29 Secondary 1 | . . . . . . . . . . . . . . . . . . . . . . . . . . . . . . . . . . . . . 1 Self-Inflicted Damage 1099 | . . . 32 43 56 118 265 67 . . . 17 . . . . 253 . 91 . . 71 . . . . 17 10 47 . . . . 12 . . . Shots 39 | . . . 2 1 2 5 7 2 . . . 3 . . . . 3 . 4 . . 4 . . . . 1 1 3 . . . . 1 . . . Rammed 91 | 2 1 10 10 . . 3 7 5 3 . . . 7 1 . . 1 9 . . . . 10 . 9 . . . . 1 5 . 2 5 . . . Targets Rammed 95 | 2 1 11 10 . . 3 8 5 3 . . . 7 1 . . 1 9 . . . . 11 . 10 . . . . 1 5 . 2 5 . . . Kicked . | . . . . . . . . . . . . . . . . . . . . . . . . . . . . . . . . . . . . . . Crushed 4 | . . 1 . . . . 1 . . . . . . . . . . . . . . . 1 . 1 . . . . . . . . . . . . Highest Temperature 435 | 40 2 256 315 . 203 . 240 66 159 239 325 132 186 300 115 . 161 204 67 . 28 168 435 . 354 180 238 240 36 346 232 275 260 187 . . . Average Temperature 67 | 16 2 91 68 . 121 . 65 21 86 123 174 57 38 132 41 . 37 62 30 . 14 56 76 . 60 61 68 65 21 94 71 105 70 32 . . . Received Heat Transfer 3334 | . 90 . 366 . . . 684 258 63 . . 99 87 150 . . 183 171 45 . . 21 78 . 250 12 . . . 4 19 . 43 252 31 146 282 Effects 16 | . . 2 2 . . . 4 . . . . . . 3 . . . . . . . . 2 . 3 . . . . . . . . . . . . Shutdowns 3 | . . . . . . . . . . . . . . . . . . . . . . . 2 . 1 . . . . . . . . . . . . Energy Bleed 2 | . . . . . . . 1 . . . . . . 1 . . . . . . . . . . . . . . . . . . . . . . . Interference 11 | . . 2 2 . . . 3 . . . . . . 2 . . . . . . . . . . 2 . . . . . . . . . . . . Siege Activations 144 | . . . . . . . . . . . . . . . . . 12 7 . . . 2 11 4 15 1 1 . . 3 6 . 10 17 2 14 39 Total Turns 3170 | . . . . . . . . . . . . . . . . . 109 66 . . . 63 148 131 247 4 12 . . 25 221 . 212 200 16 1312 404 Longest Duration 1131 | . . . . . . . . . . . . . . . . . 26 24 . . . 48 40 100 41 4 12 . . 13 59 . 45 42 9 1131 47 Robots Corrupted 95 | . . . . . . . 3 2 . . . 4 2 1 3 . 2 . 4 . . 1 8 . 7 . 2 3 1 4 4 . 4 30 4 6 . Combat Hostiles 92 | . . . . . . . 3 1 . . . 4 2 1 3 . 2 . 4 . . 1 7 . 6 . 2 3 1 4 4 . 4 30 4 6 . Parts Fried 216 | . . . . . . . 9 10 2 . . 12 13 5 11 . 8 . 6 . . 5 15 . 9 . 1 2 2 6 5 . 14 62 8 11 . Impact Corruptions 4 | . . . . . . . . . 2 . . . 1 . . . . . . . . . . . . . . . . . 1 . . . . . . Robots Melted . | . . . . . . . . . . . . . . . . . . . . . . . . . . . . . . . . . . . . . . Combat Hostiles . | . . . . . . . . . . . . . . . . . . . . . . . . . . . . . . . . . . . . . . Parts Melted 23 | . . . 1 . . . . 1 . . . 1 . . . . . . . . . . . . . . . 1 . . . . 6 4 3 6 . Heat Transferred 7198 | 50 . . 925 . . . 300 350 . . . 250 100 . 100 . 300 . . . 37 50 37 . 600 25 . 350 . . 150 . 925 568 296 1785 . Parts Sabotaged . | . . . . . . . . . . . . . . . . . . . . . . . . . . . . . . . . . . . . . . Parts Stolen . | . . . . . . . . . . . . . . . . . . . . . . . . . . . . . . . . . . . . . . Parts Stripped . | . . . . . . . . . . . . . . . . . . . . . . . . . . . . . . . . . . . . . . Power Chain Reactions 26 | 1 . . . . . . 6 4 . . . 3 2 . 2 . 2 . . . . 1 . . 1 . . 3 . . . . . 1 . . . Missiles Intercepted 6 | . . . . . . . . . . . . . . . . . . . . . . . . . . . . . . . . . . . . 6 . Alert | -11 -10 -10 -9 -9 -9 -8 -8 -7 -7 -7 -7 -6 -6 -6 -6 -6 -6 -5 -5 -5 -5 -4 -4 -4 -4 -4 -4 -4 -3 -3 -3 -2 -2 -2 -1 -1 -1 ------- Run | Scr Mat Min Mat Min Exi Min Mat Fac Low Low Zio Pro Fac Ext Cet Arc Hub Fac Upp Upp Zhi Pro Fac Was Fac Upp Upp War Pro Res Qua Res Tes Sec Acc Com Ac0 Peak Influence 1114 | 5 160 93 288 139 . 273 1114 605 . . . . 450 343 486 199 353 325 . . . . 152 40 898 . . . . 222 256 47 313 1021 606 760 . Initial 600 | . 3 33 . 69 . . 58 459 . . . . 172 143 108 194 69 172 . . . . . 30 . . . . . 13 96 35 6 99 600 263 . Average 203 | 1 62 21 154 49 . 127 556 389 . . . . 242 131 337 193 121 215 . . . . 46 17 199 . . . . 105 106 25 99 353 480 554 . Maximum Alert Level 4 | . . . 1 . . 1 4 2 . . . . 2 1 2 . 1 1 . . . . . . 3 . . . . 1 1 . 1 3 2 3 . Low Security (%) 54 | 100 100 100 74 100 . 88 19 . . . . . 46 87 15 100 92 40 . . . . 100 100 63 . . . . 87 88 100 88 53 . . . Level 1 13 | . . . 25 . . 11 15 48 . . . . 48 12 37 . 7 59 . . . . . . 19 . . . . 12 11 . 11 11 14 1 . Level 2 9 | . . . . . . . 27 51 . . . . 4 . 46 . . . . . . . . . 9 . . . . . . . . 10 85 9 . Level 3 22 | . . . . . . . 36 . . . . . . . . . . . . . . . . . 8 . . . . . . . . 25 . 89 . Level 4 . | . . . . . . . 1 . . . . . . . . . . . . . . . . . . . . . . . . . . . . . . Level 5 . | . . . . . . . . . . . . . . . . . . . . . . . . . . . . . . . . . . . . . . High Security . | . . . . . . . . . . . . . . . . . . . . . . . . . . . . . . . . . . . . . . Max Security . | . . . . . . . . . . . . . . . . . . . . . . . . . . . . . . . . . . . . . . Squads Dispatched 84 | . 3 . 2 . . . 9 7 . . . . 5 . . . 4 3 . . . . 3 . 8 . . . . 2 9 1 9 12 4 3 . Investigation 5 | . . . . . . . 1 1 . . . . 1 . . . . . . . . . . . . . . . . 1 . . . . 1 . . Extermination 40 | . . . . . . . . 4 . . . . 2 . . . 1 2 . . . . 2 . 5 . . . . 1 6 . 7 6 2 2 . Reinforcement 27 | . 3 . 2 . . . 5 2 . . . . 1 . . . 3 1 . . . . 1 . 2 . . . . . . 1 2 3 1 . . Assault 8 | . . . . . . . 3 . . . . . . . . . . . . . . . . . 1 . . . . . . . . 3 . 1 . Garrison 4 | . . . . . . . . . . . . . 1 . . . . . . . . . . . . . . . . . 3 . . . . . . Intercept . | . . . . . . . . . . . . . . . . . . . . . . . . . . . . . . . . . . . . . . Construction Impeded 4 | . . . . . . . 1 . . . . . 1 . . . . . . . . . . . 2 . . . . . . . . . . . . Haulers Reinforced 3 | . . . . . . . . 1 . . . . . . . . . . . . . . 1 . . . . . . . . 1 . . . . . Stealth | -11 -10 -10 -9 -9 -9 -8 -8 -7 -7 -7 -7 -6 -6 -6 -6 -6 -6 -5 -5 -5 -5 -4 -4 -4 -4 -4 -4 -4 -3 -3 -3 -2 -2 -2 -1 -1 -1 --------- Run | Scr Mat Min Mat Min Exi Min Mat Fac Low Low Zio Pro Fac Ext Cet Arc Hub Fac Upp Upp Zhi Pro Fac Was Fac Upp Upp War Pro Res Qua Res Tes Sec Acc Com Ac0 Distress Signals 32 | . . . . . . . 3 . . . . . 1 . 1 . . . . . . . 2 . 2 . . . . . 1 6 . . . 16 . Communications Jammed 114 | . . . . . . . . . . . . . 13 13 . . 19 . . . . . 4 . 25 . . 3 . 2 . . 1 33 1 . . Distress Signals 111 | . . . . . . . . . . . . . 13 13 . . 17 . . . . . 4 . 25 . . 3 . 2 . . 1 33 . . . Times Spotted 692 | . 12 4 31 3 47 12 73 25 6 . . 19 28 14 10 5 23 15 5 . . 3 18 5 43 1 8 35 1 10 29 . 30 70 12 27 68 Peak Tracking Total 12 | . 3 3 4 3 9 4 7 4 4 . . 7 4 4 5 6 3 4 4 . . 4 4 2 8 1 4 12 1 3 4 . 3 10 4 5 5 Tactical Retreats 54 | . 1 . 1 . 15 2 7 1 1 . . 4 2 . 1 1 . 2 1 . . 1 2 2 3 . . 1 . 1 . . 4 . . 1 . Traps | -11 -10 -10 -9 -9 -9 -8 -8 -7 -7 -7 -7 -6 -6 -6 -6 -6 -6 -5 -5 -5 -5 -4 -4 -4 -4 -4 -4 -4 -3 -3 -3 -2 -2 -2 -1 -1 -1 ------- Run | Scr Mat Min Mat Min Exi Min Mat Fac Low Low Zio Pro Fac Ext Cet Arc Hub Fac Upp Upp Zhi Pro Fac Was Fac Upp Upp War Pro Res Qua Res Tes Sec Acc Com Ac0 Traps Triggered 28 | . 2 . . . . . 1 3 . . . . 4 . . . . 2 . . . . 1 . 3 . . . . 1 3 . 2 2 . 4 . Indirectly . | . . . . . . . . . . . . . . . . . . . . . . . . . . . . . . . . . . . . . . Trap Hack Attempts . | . . . . . . . . . . . . . . . . . . . . . . . . . . . . . . . . . . . . . . Triggered . | . . . . . . . . . . . . . . . . . . . . . . . . . . . . . . . . . . . . . . Disarmed . | . . . . . . . . . . . . . . . . . . . . . . . . . . . . . . . . . . . . . . Reprogrammed . | . . . . . . . . . . . . . . . . . . . . . . . . . . . . . . . . . . . . . . Reused . | . . . . . . . . . . . . . . . . . . . . . . . . . . . . . . . . . . . . . . Traps Extracted . | . . . . . . . . . . . . . . . . . . . . . . . . . . . . . . . . . . . . . . Installed . | . . . . . . . . . . . . . . . . . . . . . . . . . . . . . . . . . . . . . . Triggered 13 | . . . . . . . 1 . . . . . 2 . . . . . . . . . . . . . . 9 . . 1 . . . . . . Exploded 3 | . . . . . 3 . . . . . . . . . . . . . . . . . . . . . . . . . . . . . . . . Machines | -11 -10 -10 -9 -9 -9 -8 -8 -7 -7 -7 -7 -6 -6 -6 -6 -6 -6 -5 -5 -5 -5 -4 -4 -4 -4 -4 -4 -4 -3 -3 -3 -2 -2 -2 -1 -1 -1 ---------- Run | Scr Mat Min Mat Min Exi Min Mat Fac Low Low Zio Pro Fac Ext Cet Arc Hub Fac Upp Upp Zhi Pro Fac Was Fac Upp Upp War Pro Res Qua Res Tes Sec Acc Com Ac0 Machines Disabled 96 | . . . 1 . 11 . 5 5 . . . . 3 . 1 . 13 3 . . . . 1 . 8 . . 1 . . 8 . 8 16 . 3 9 Max in Single Turn 7 | . . . 1 . 2 . 2 1 . . . . 2 . 1 . 7 1 . . . . 1 . 3 . . 1 . . 1 . 1 1 . 2 1 Garrison Access 10 | . . . . . . . 1 . . . . . 1 . . . 1 . . . . . 2 . 1 . . . . 1 1 . . 1 1 . . Phase Generator 1 | . . . . . . . . . . . . . . . . . . . . . . . . . . . . . . . . . . . . 1 . Network Hub 2 | . . . . . . . . . . . . . . . . . 2 . . . . . . . . . . . . . . . . . . . . Machines Sabotaged . | . . . . . . . . . . . . . . . . . . . . . . . . . . . . . . . . . . . . . . Garrisons Compromised . | . . . . . . . . . . . . . . . . . . . . . . . . . . . . . . . . . . . . . . Overloaded Fab Kills . | . . . . . . . . . . . . . . . . . . . . . . . . . . . . . . . . . . . . . . Fab Network Shutdowns 1 | . . . . . . . . . . . . . . . . . . . . . . . . . 1 . . . . . . . . . . . . Hacking | -11 -10 -10 -9 -9 -9 -8 -8 -7 -7 -7 -7 -6 -6 -6 -6 -6 -6 -5 -5 -5 -5 -4 -4 -4 -4 -4 -4 -4 -3 -3 -3 -2 -2 -2 -1 -1 -1 --------- Run | Scr Mat Min Mat Min Exi Min Mat Fac Low Low Zio Pro Fac Ext Cet Arc Hub Fac Upp Upp Zhi Pro Fac Was Fac Upp Upp War Pro Res Qua Res Tes Sec Acc Com Ac0 Machines Accessed 129 | . . . 7 . 2 . 6 5 . 2 . . 8 6 1 1 10 3 . . 4 . 8 . 8 . 1 5 . 7 9 . 8 16 8 3 1 Terminals 83 | . . . 6 . . . 4 5 . . . . 4 5 1 . 9 3 . . . . 3 . 6 . . . . 4 6 . 6 12 7 2 . Fabricators 6 | . . . . . . . . . . . . . 3 . . . . . . . . . 1 . 1 . . . . . . . 1 . . . . Repair Stations 10 | . . . 1 . . . 1 . . . . . . 1 . . . . . . . . 2 . . . . . . 1 1 . 1 1 . 1 . Recycling Units . | . . . . . . . . . . . . . . . . . . . . . . . . . . . . . . . . . . . . . . Scanalyzers 4 | . . . . . . . . . . . . . . . . . . . . . . . . . . . . . . 1 1 . . 2 . . . Garrison Access 10 | . . . . . . . 1 . . . . . 1 . . . 1 . . . . . 2 . 1 . . . . 1 1 . . 1 1 . . Total Hacks 512 | . . . 17 . 2 . 13 9 . 10 . . 21 13 1 25 28 10 . . 17 . 72 . 47 . 1 15 . 40 36 . 34 57 33 8 3 Successful 299 | . . . 11 . 2 . 7 4 . 10 . . 11 7 1 25 16 5 . . 17 . 34 . 23 . 1 15 . 21 21 . 21 28 11 5 3 Failed 212 | . . . 5 . . . 6 5 . . . . 10 6 . . 12 5 . . . . 38 . 24 . . . . 19 15 . 13 29 22 3 . Catastrophic 30 | . . . 1 . . . 1 4 . . . . 1 . . . 1 1 . . . . 6 . 3 . . . . 1 3 . . 5 3 . . Database Lockouts 1 | . . . 1 . . . . . . . . . . . . . . . . . . . . . . . . . . . . . . . . . . Manual 240 | . . . 17 . 1 . 6 7 . . . . 14 3 . . 18 5 . . . . 21 . 39 . . . . 21 20 . 13 30 21 4 . Terminals 337 | . . . 15 . . . 8 9 . . . . 10 9 1 . 26 10 . . . . 36 . 42 . . . . 31 29 . 25 49 32 5 . Fabricators 24 | . . . . . . . . . . . . . 8 . . . . . . . . . 7 . 3 . . . . . . . 6 . . . . Repair Stations 45 | . . . 2 . . . 2 . . . . . . 4 . . . . . . . . 23 . . . . . . 4 2 . 3 2 . 3 . Recycling Units . | . . . . . . . . . . . . . . . . . . . . . . . . . . . . . . . . . . . . . . Scanalyzers 12 | . . . . . . . . . . . . . . . . . . . . . . . . . . . . . . 3 4 . . 5 . . . Garrison Access 21 | . . . . . . . 3 . . . . . 3 . . . 2 . . . . . 6 . 2 . . . . 2 1 . . 1 1 . . Terminal Hacks 192 | . . . 7 . 2 . 4 2 . 10 . . 3 5 1 25 11 3 . . 17 . 9 . 14 . 1 15 . 12 11 . 11 17 8 1 3 Record 56 | . . . . . 1 . . . . 9 . . . . . 25 . . . . 5 . . . . . . 15 . 1 . . . . . . . Part Schematic 15 | . . . . . . . . . . . . . 1 1 . . 1 . . . 4 . 4 . 1 . . . . 1 2 . . . . . . Robot Analysis 6 | . . . 1 . . . . . . . . . . . . . . . . . 4 . . . . . . . . . . . 1 . . . . Prototype ID Bank 10 | . . . 2 . . . . . . . . . . . . . 1 . . . 4 . . . 1 . . . . . . . . 2 . . . Open Door 13 | . . . . . . . . . . 1 . . . 3 1 . . . . . . . . . . . 1 . . . . . . 3 3 1 . Branch Access Points 8 | . . . 1 . . . . 1 . . . . 1 . . . . 1 . . . . 1 . 1 . . . . 1 . . . . 1 . . Terminal Index 7 | . . . . . . . 1 . . . . . . . . . 1 . . . . . 1 . 1 . . . . . 1 . 1 1 . . . Fabricator Index 3 | . . . . . . . . . . . . . . . . . . . . . . . 1 . 1 . . . . 1 . . . . . . . Repair Station Index 4 | . . . . . . . . . . . . . . . . . . 1 . . . . 1 . 1 . . . . 1 . . . . . . . Scanalyzer Index 1 | . . . . . . . . . . . . . . . . . . . . . . . . . . . . . . 1 . . . . . . . Alert Level 2 | . . . . . . . . . . . . . . . . . . . . . . . . . . . . . . . 2 . . . . . . Unreport Threat 28 | . . . . . . . 2 1 . . . . 1 1 . . 3 . . . . . 1 . 3 . . . . 1 4 . 4 5 2 . . Transport Status 1 | . . . 1 . . . . . . . . . . . . . . . . . . . . . . . . . . . . . . . . . . Recall Extermination 5 | . . . . . . . . . . . . . . . . . . . . . . . . . 1 . . . . . . . 2 2 . . . Recall Reinforcements 7 | . . . . . . . . . . . . . . . . . 2 . . . . . . . 1 . . . . . . . 1 2 1 . . Hauler Manifests 7 | . . . 1 . . . . . . . . . . . . . 1 1 . . . . . . 1 . . . . 1 . . 1 1 . . . Registered Prototypes 1 | . . . . . . . . . . . . . . . . . . . . . . . . . 1 . . . . . . . . . . . . Zone Layout 14 | . . . 1 . . . 1 . . . . . . . . . 2 . . . . . . . 1 . . . . 4 2 . 1 1 1 . . EX-Prototype ID Bank 1 | . . . . . 1 . . . . . . . . . . . . . . . . . . . . . . . . . . . . . . . . Gate Test 138-A 1 | . . . . . . . . . . . . . . . . . . . . . . . . . . . . . . . . . . . . . 1 Gate Test 138-B 1 | . . . . . . . . . . . . . . . . . . . . . . . . . . . . . . . . . . . . . 1 Gate Test 138-END 1 | . . . . . . . . . . . . . . . . . . . . . . . . . . . . . . . . . . . . . 1 Fabricator Hacks 13 | . . . . . . . . . . . . . 4 . . . . . . . . . 3 . 2 . . . . . . . 4 . . . . Load Schematic 7 | . . . . . . . . . . . . . 3 . . . . . . . . . 1 . 1 . . . . . . . 2 . . . . Build 6 | . . . . . . . . . . . . . 1 . . . . . . . . . 2 . 1 . . . . . . . 2 . . . . Repair Station Hacks 28 | . . . 2 . . . 2 . . . . . . 2 . . . . . . . . 15 . . . . . . 2 2 . 2 . . 1 . Scan Component 15 | . . . 1 . . . 1 . . . . . . 1 . . . . . . . . 8 . . . . . . 1 1 . 1 . . 1 . Repair 13 | . . . 1 . . . 1 . . . . . . 1 . . . . . . . . 7 . . . . . . 1 1 . 1 . . . . Recycling Unit Hacks . | . . . . . . . . . . . . . . . . . . . . . . . . . . . . . . . . . . . . . . Scanalyzer 9 | . . . . . . . . . . . . . . . . . . . . . . . . . . . . . . 1 3 . . 5 . . . Insert Component 8 | . . . . . . . . . . . . . . . . . . . . . . . . . . . . . . 1 2 . . 5 . . . Analyze 1 | . . . . . . . . . . . . . . . . . . . . . . . . . . . . . . . 1 . . . . . . Garrison Access Hacks 8 | . . . . . . . . . . . . . . . . . 1 . . . . . 2 . 1 . . . . 1 1 . . 1 1 . . Seal Access 8 | . . . . . . . . . . . . . . . . . 1 . . . . . 2 . 1 . . . . 1 1 . . 1 1 . . Unauthorized Hacks 49 | . . . 2 . . . 1 2 . . . . 4 . . . 4 2 . . . . 5 . 6 . . . . 5 4 . 4 5 2 3 . Terminals 43 | . . . 2 . . . . 2 . . . . 2 . . . 4 2 . . . . 4 . 5 . . . . 5 4 . 3 5 2 3 . Track 8 | . . . 1 . . . . . . . . . . . . . 1 . . . . . 1 . 2 . . . . 1 . . . 1 . 1 . Assimilate 9 | . . . . . . . . . . . . . 1 . . . 2 . . . . . 1 . . . . . . 1 1 . 1 2 . . . Botnet 21 | . . . 1 . . . . 2 . . . . 1 . . . 1 2 . . . . 2 . 2 . . . . 2 2 . 2 2 1 1 . Operators 5 | . . . . . . . . . . . . . . . . . . . . . . . . . 1 . . . . 1 1 . . . 1 1 . Fabricators 4 | . . . . . . . . . . . . . 1 . . . . . . . . . 1 . 1 . . . . . . . 1 . . . . Prioritize 3 | . . . . . . . . . . . . . . . . . . . . . . . 1 . 1 . . . . . . . 1 . . . . Siphon 1 | . . . . . . . . . . . . . 1 . . . . . . . . . . . . . . . . . . . . . . . . Repair Stations . | . . . . . . . . . . . . . . . . . . . . . . . . . . . . . . . . . . . . . . Recycling Units . | . . . . . . . . . . . . . . . . . . . . . . . . . . . . . . . . . . . . . . Scanalyzers . | . . . . . . . . . . . . . . . . . . . . . . . . . . . . . . . . . . . . . . Garrison Access 2 | . . . . . . . 1 . . . . . 1 . . . . . . . . . . . . . . . . . . . . . . . . Jam 2 | . . . . . . . 1 . . . . . 1 . . . . . . . . . . . . . . . . . . . . . . . . Data Cores Recovered 2 | . . . . . . . . . . . . . . . . . . . . . . . . . 1 . . . . . . . 1 . . . . Used 2 | . . . . . . . . . . . . . . . . . . . . . . . . . 1 . . . . . . . 1 . . . . Hacking Detections 79 | . . . 6 . . . 5 4 . . . . 6 3 . . 10 2 . . . . 5 . 7 . . . . 5 7 . 4 8 5 2 . Full Trace Events 2 | . . . 1 . . . . . . . . . . . . . . . . . . . . . . . . . . . . . . . 1 . . Feedback Events 1 | . . . . . . . . . . . . . . . . . . . . . . . . . . . . . . . . . . . 1 . . Corruption 1 | . . . . . . . . . . . . . . . . . . . . . . . . . . . . . . . . . . . 1 . . Feedback Blocked . | . . . . . . . . . . . . . . . . . . . . . . . . . . . . . . . . . . . . . . Robot Schematics Acquired . | . . . . . . . . . . . . . . . . . . . . . . . . . . . . . . . . . . . . . . Robots Built . | . . . . . . . . . . . . . . . . . . . . . . . . . . . . . . . . . . . . . . Matter . | . . . . . . . . . . . . . . . . . . . . . . . . . . . . . . . . . . . . . . Time . | . . . . . . . . . . . . . . . . . . . . . . . . . . . . . . . . . . . . . . Total Robot Build Rating . | . . . . . . . . . . . . . . . . . . . . . . . . . . . . . . . . . . . . . . Part Schematics Acquired 16 | . . . . . . . . . . . . . 1 1 . . 1 . . . 4 . 4 . 1 . . . . 1 3 . . . . . . Parts Built 9 | . . . . . . . . . . . . . 1 . . . . . . . . . 3 . 1 . . . . . . . 4 . . . . Matter 1528 | . . . . . . . . . . . . . 168 . . . . . . . . . 563 . 285 . . . . . . . 512 . . . . Time 531 | . . . . . . . . . . . . . 42 . . . . . . . . . 145 . 152 . . . . . . . 192 . . . . Total Part Build Rating 64 | . . . . . . . . . . . . . 4 . . . . . . . . . 23 . 5 . . . . . . . 32 . . . . Parts Repaired 13 | . . . 1 . . . 1 . . . . . . 1 . . . . . . . . 7 . . . . . . 1 1 . 1 . . . . Time 915 | . . . 51 . . . 32 . . . . . . 35 . . . . . . . . 620 . . . . . . 36 33 . 108 . . . . Parts Recycled . | . . . . . . . . . . . . . . . . . . . . . . . . . . . . . . . . . . . . . . Recycled Matter . | . . . . . . . . . . . . . . . . . . . . . . . . . . . . . . . . . . . . . . Retrieved Matter . | . . . . . . . . . . . . . . . . . . . . . . . . . . . . . . . . . . . . . . Retrieved Components . | . . . . . . . . . . . . . . . . . . . . . . . . . . . . . . . . . . . . . . Parts Scanalyzed 1 | . . . . . . . . . . . . . . . . . . . . . . . . . . . . . . . 1 . . . . . . Part Schematics Acquired 1 | . . . . . . . . . . . . . . . . . . . . . . . . . . . . . . . 1 . . . . . . Parts Damaged . | . . . . . . . . . . . . . . . . . . . . . . . . . . . . . . . . . . . . . . Bothacking | -11 -10 -10 -9 -9 -9 -8 -8 -7 -7 -7 -7 -6 -6 -6 -6 -6 -6 -5 -5 -5 -5 -4 -4 -4 -4 -4 -4 -4 -3 -3 -3 -2 -2 -2 -1 -1 -1 ------------ Run | Scr Mat Min Mat Min Exi Min Mat Fac Low Low Zio Pro Fac Ext Cet Arc Hub Fac Upp Upp Zhi Pro Fac Was Fac Upp Upp War Pro Res Qua Res Tes Sec Acc Com Ac0 Used RIF Installer . | . . . . . . . . . . . . . . . . . . . . . . . . . . . . . . . . . . . . . . Robots Hacked . | . . . . . . . . . . . . . . . . . . . . . . . . . . . . . . . . . . . . . . Non-combat . | . . . . . . . . . . . . . . . . . . . . . . . . . . . . . . . . . . . . . . Combat . | . . . . . . . . . . . . . . . . . . . . . . . . . . . . . . . . . . . . . . Robot Hacks Applied . | . . . . . . . . . . . . . . . . . . . . . . . . . . . . . . . . . . . . . . Relay Couplers Released 4 | . . . . . . . . . . . . . . . . . . . . . . . . . . . . . . . . 4 . . . . . Programmers 4 | . . . . . . . . . . . . . . . . . . . . . . . . . . . . . . . . 4 . . . . . Robots Rewired 7 | . . . . . . . . . . . . . . 3 . . . . . . . . . . . . . 4 . . . . . . . . . Allies Hacked 2 | . . . . . . . . . . . . . . . . . . . . . . . . . . . . . . . 1 . . 1 . . . Hacks Repelled . | . . . . . . . . . . . . . . . . . . . . . . . . . . . . . . . . . . . . . . Allies | -11 -10 -10 -9 -9 -9 -8 -8 -7 -7 -7 -7 -6 -6 -6 -6 -6 -6 -5 -5 -5 -5 -4 -4 -4 -4 -4 -4 -4 -3 -3 -3 -2 -2 -2 -1 -1 -1 -------- Run | Scr Mat Min Mat Min Exi Min Mat Fac Low Low Zio Pro Fac Ext Cet Arc Hub Fac Upp Upp Zhi Pro Fac Was Fac Upp Upp War Pro Res Qua Res Tes Sec Acc Com Ac0 Total Allies 21 | . . 3 . . . . . . . . . . 1 8 . . 1 . . . . . 1 . . . . 4 . 1 1 . . 1 . . . Largest Group 7 | . . 3 . . . . . . . . . . 1 7 3 2 1 . . . . . 1 . . . . 4 . 1 1 . . 1 . . . Highest-Rated Group 294 | . . 40 . . . . . . . . . . 10 294 186 166 26 . . . . . 10 . . . . 200 . 26 44 . . 44 . . . Highest-Rated Ally 156 | . . 16 . . . . . . . . . . 10 156 156 156 26 . . . . . 10 . . . . 56 . 26 44 . . 44 . . . Total Orders 7 | . . . . . . . . . . . . . . . 2 2 . . . . . . . . . . . 3 . . . . . . . . . STAY 4 | . . . . . . . . . . . . . . . 1 1 . . . . . . . . . . . 2 . . . . . . . . . FOLLOW 3 | . . . . . . . . . . . . . . . 1 1 . . . . . . . . . . . 1 . . . . . . . . . Ally Attacks 101 | . . 11 . . . . . . . . . . . 40 16 . . . . . . . . . . . . 34 . . . . . . . . . Total Damage 3298 | . . 121 . . . . . . . . . . . 926 416 . . . . . . . . . . . . 1835 . . . . . . . . . Kills 19 | . . . . . . . . . . . . . . 8 3 . . . . . . . . . . . . 8 . . . . . . . . . Allies Corrupted . | . . . . . . . . . . . . . . . . . . . . . . . . . . . . . . . . . . . . . . Allies Melted . | . . . . . . . . . . . . . . . . . . . . . . . . . . . . . . . . . . . . . . Intel | -11 -10 -10 -9 -9 -9 -8 -8 -7 -7 -7 -7 -6 -6 -6 -6 -6 -6 -5 -5 -5 -5 -4 -4 -4 -4 -4 -4 -4 -3 -3 -3 -2 -2 -2 -1 -1 -1 ------- Run | Scr Mat Min Mat Min Exi Min Mat Fac Low Low Zio Pro Fac Ext Cet Arc Hub Fac Upp Upp Zhi Pro Fac Was Fac Upp Upp War Pro Res Qua Res Tes Sec Acc Com Ac0 Robot Analysis Total 6 | . . . 1 . . . . . . . . . . . . . . . . . 4 . . . . . . . . . . . 1 . . . . Derelict Logs Recovered 9 | . . 1 . 1 . . . . 2 2 1 . . . . . . . . . . . . . . 1 1 . . . . . . . . . . Drone Launches . | . . . . . . . . . . . . . . . . . . . . . . . . . . . . . . . . . . . . . . Drone Recoveries . | . . . . . . . . . . . . . . . . . . . . . . . . . . . . . . . . . . . . . . Exploration | -11 -10 -10 -9 -9 -9 -8 -8 -7 -7 -7 -7 -6 -6 -6 -6 -6 -6 -5 -5 -5 -5 -4 -4 -4 -4 -4 -4 -4 -3 -3 -3 -2 -2 -2 -1 -1 -1 ------------- Run | Scr Mat Min Mat Min Exi Min Mat Fac Low Low Zio Pro Fac Ext Cet Arc Hub Fac Upp Upp Zhi Pro Fac Was Fac Upp Upp War Pro Res Qua Res Tes Sec Acc Com Ac0 Turns Passed 61591 | 64 486 1660 2242 1123 2073 1130 1643 1605 806 420 4036 753 2192 956 283 82 1271 1053 830 1021 287 697 2702 817 2525 1118 1328 1331 463 664 2375 729 2725 3630 1124 8421 4926 Spaces Moved 27123 | 23 210 568 992 622 966 546 603 666 430 234 1086 346 1032 428 113 45 514 491 451 550 150 298 1134 365 992 517 587 637 256 289 1079 403 1266 1714 608 3642 2270 Core 105 | . . . . . . . . . . . 105 . . . . . . . . . . . . . . . . . . . . . . . . . . Treads 27018 | 23 210 568 992 622 966 546 603 666 430 234 981 346 1032 428 113 45 514 491 451 550 150 298 1134 365 992 517 587 637 256 289 1079 403 1266 1714 608 3642 2270 Legs . | . . . . . . . . . . . . . . . . . . . . . . . . . . . . . . . . . . . . . . Wheels . | . . . . . . . . . . . . . . . . . . . . . . . . . . . . . . . . . . . . . . Hover . | . . . . . . . . . . . . . . . . . . . . . . . . . . . . . . . . . . . . . . Flight . | . . . . . . . . . . . . . . . . . . . . . . . . . . . . . . . . . . . . . . Fastest Speed 155 | 160 160 160 160 180 180 200 180 180 180 180 180 180 180 180 180 180 180 160 180 180 160 180 172 172 172 172 172 172 172 172 172 172 167 155 155 155 155 Average Speed 181 | 160 165 179 185 180 183 200 192 194 180 180 370 180 180 180 180 180 180 165 180 180 179 180 175 172 172 172 172 172 172 172 172 172 167 156 155 165 165 Slowest Speed 2150 | 160 180 180 200 180 200 200 200 200 180 180 2150 180 180 180 180 180 180 180 180 180 180 180 180 172 172 172 172 172 172 172 172 172 172 167 175 175 167 Overloaded Moves . | . . . . . . . . . . . . . . . . . . . . . . . . . . . . . . . . . . . . . . Propulsion Burnouts . | . . . . . . . . . . . . . . . . . . . . . . . . . . . . . . . . . . . . . . Robots Hopped . | . . . . . . . . . . . . . . . . . . . . . . . . . . . . . . . . . . . . . . Cave-ins Triggered . | . . . . . . . . . . . . . . . . . . . . . . . . . . . . . . . . . . . . . . Teleports 2 | . . . . . . . . . . . . . . . . . . . . . . . . . . . . . . . . . . . . 1 1 Exploration Rate (%) 59 | 3 44 97 77 99 89 99 61 21 63 51 84 57 31 63 64 64 61 13 62 74 60 51 25 85 28 61 78 80 42 11 95 15 94 72 23 93 73 Regions Visited 37 Branch Regions 25 Pre-discovered Areas 11 | . . 1 . . 1 . . . 1 2 2 . . . . . . . . . 3 . . . . . . 1 . . . . . . . . . Known Exits Taken 24 | . . . 1 . . 1 . 1 . . . . 1 1 1 1 1 1 1 1 1 1 . . 1 1 1 1 1 1 1 1 1 1 1 . . Unknown Exits Taken 11 | 1 1 1 . 1 1 . 1 . 1 1 1 1 . . . . . . . . . . . . . . . . . . . . . . . 1 . Scrap Searched 25 | . . 1 . 1 . 1 . . 2 2 4 1 . . . . . . 4 2 . 2 . . . 1 2 . 2 . . . . . . . . Spaces Dug 601 | . . 2 6 . . 49 14 18 . . . 3 13 1 . . 16 12 1 15 . 19 47 . 48 8 45 16 3 31 18 10 63 74 24 8 37 Terrain Destroyed 2263 | 1 . 2 13 10 40 139 141 41 . . . 9 39 19 18 . 357 35 1 15 . 27 55 7 109 11 90 31 3 39 81 10 131 83 24 101 581 Melee 68 | . . . . . . . . 14 . . . . 13 1 . . . . . . . . . . . . . . . . . . 1 20 11 8 . Projectile 1240 | . . 2 3 . 9 . 16 4 . . . 3 . . . . 49 35 1 15 . 20 55 7 87 11 46 16 3 39 81 10 77 56 13 1 581 AOE 955 | 1 . . 10 10 31 139 125 23 . . . 6 26 18 18 . 308 . . . . 7 . . 22 . 44 15 . . . . 53 7 . 92 . Terrain Rammed . | . . . . . . . . . . . . . . . . . . . . . . . . . . . . . . . . . . . . . . Walls Destroyed . | . . . . . . . . . . . . . . . . . . . . . . . . . . . . . . . . . . . . . . Machines Disabled . | . . . . . . . . . . . . . . . . . . . . . . . . . . . . . . . . . . . . . . Actions | -11 -10 -10 -9 -9 -9 -8 -8 -7 -7 -7 -7 -6 -6 -6 -6 -6 -6 -5 -5 -5 -5 -4 -4 -4 -4 -4 -4 -4 -3 -3 -3 -2 -2 -2 -1 -1 -1 --------- Run | Scr Mat Min Mat Min Exi Min Mat Fac Low Low Zio Pro Fac Ext Cet Arc Hub Fac Upp Upp Zhi Pro Fac Was Fac Upp Upp War Pro Res Qua Res Tes Sec Acc Com Ac0 Total 36835 | 34 300 1167 1246 625 1164 569 888 850 447 233 1102 420 1249 550 162 46 747 654 463 566 166 427 1692 512 1597 727 847 838 272 441 1491 438 1789 2493 750 5869 3004 Wait 5371 | . 30 571 90 . 45 . 101 31 5 . . 35 83 44 4 2 122 59 . 1 . 93 352 111 310 187 180 67 10 56 192 3 262 325 25 1647 328 Move 27086 | 22 209 567 991 621 965 545 602 665 429 233 1085 345 1031 427 112 44 513 490 450 549 149 297 1134 364 991 516 586 636 255 288 1078 402 1265 1713 607 3641 2269 Hop . | . . . . . . . . . . . . . . . . . . . . . . . . . . . . . . . . . . . . . . Pick Up 347 | . 13 . 25 1 27 2 25 15 . . 4 1 13 3 9 . 8 13 1 . 3 1 28 3 15 1 5 7 . 6 22 4 15 23 . 34 20 Fast Attach 280 | . 1 . 10 . 6 . 3 7 . . 2 . 7 3 4 . . 1 . . 5 . 2 2 6 . 2 9 . 3 9 5 8 30 19 105 31 Attach 179 | . 1 2 6 . 7 1 12 8 . . . . 6 1 . . 3 3 1 . 1 . 7 1 17 . 3 . . 6 23 2 9 13 1 25 20 Detach 119 | . . . 1 . 2 . . 1 . . . . 5 . 1 . 1 2 . . . . 1 1 16 . 1 3 . 5 17 1 11 8 4 31 7 Swap 550 | 2 8 2 20 1 6 2 31 26 2 . 3 5 32 15 4 . 35 23 5 1 2 9 46 5 44 6 8 5 1 17 28 5 35 53 12 30 21 Drop 501 | . 11 . 24 1 21 2 20 19 . . 8 1 13 8 13 . 7 11 1 . 5 . 18 6 21 1 6 14 . 8 28 6 24 35 16 137 16 Fire 2025 | 8 26 14 69 1 85 14 86 54 8 . . 33 36 27 15 . 57 41 5 15 1 27 93 19 163 16 56 36 6 51 89 10 151 226 49 146 292 Melee 191 | . . . . . . . . 19 . . . . 16 1 . . . . . . . . . . . . . . . . . . 7 60 17 71 . Ram . | . . . . . . . . . . . . . . . . . . . . . . . . . . . . . . . . . . . . . . Kick . | . . . . . . . . . . . . . . . . . . . . . . . . . . . . . . . . . . . . . . Crush 95 | 2 1 11 10 . . 3 8 5 3 . . . 7 1 . . 1 9 . . . . 11 . 10 . . . . 1 5 . 2 5 . . . Escape Stasis 10 | . . . . . . . . . . . . . . . . . . 2 . . . . . . 4 . . . . . . . . 2 . 2 . Rewire 81 | . . . . . . . . . . . . . . 20 . . . . . . . . . . . . . 61 . . . . . . . . . Trap . | . . . . . . . . . . . . . . . . . . . . . . . . . . . . . . . . . . . . . . Miscellaneous . | . . . . . . . . . . . . . . . . . . . . . . . . . . . . . . . . . . . . . . Route ------- -11/Scrapyard -10/Materials (discovered 2 exits: *Mat / [*Min]) -10/Mines (discovered 2 exits: *Mat x2) -9/Materials (discovered 5 exits: *Mat x2 / *Min / *Sto x2) -9/Mines (discovered 3 exits: *Mat x2 / *Exi) -9/Exiles -8/Mines (discovered 2 exits: *Mat x2) -8/Materials (discovered 2 exits: *Fac x2) -7/Factory (discovered 2 exits: *Low x2) -7/Lower Caves -7/Lower Caves -7/Zion -6/Proximity Caves -6/Factory (discovered 5 exits: Fac / *Low x2 / *Ext x2) -6/Extension (discovered 2 exits: *Fac / *Cet) -6/Cetus -6/Archives -6/Hub_04(d) (discovered 2 exits: *Fac x2) -5/Factory (discovered 2 exits: *Upp x2) -5/Upper Caves -5/Upper Caves -5/Zhirov -4/Proximity Caves -4/Factory (discovered 4 exits: Res / *Upp x2 / Arm) -4/Waste -4/Factory (discovered 3 exits: *Upp x2 / Arm) -4/Upper Caves -4/Upper Caves (discovered 2 exits: *Res / *War) -4/Warlord -3/Proximity Caves -3/Research (discovered 2 exits: *Qua x2) -3/Quarantine -2/Research -2/Testing (discovered 2 exits: *Acc / *Sec) -2/Section 7 -1/Access -1/Command (discovered 3 exits: [*Sur x2] / *Ac0) -1/Access_0 To Fleet Rendezvous History --------- Turn | Location | Event 4 | -11/Scrapyard | Discovered new exit (range 2) 65 | -11/Scrapyard | Entered Materials 306 | -10/Materials | Build established: Mutant 410 | -10/Materials | Discovered new exit (range 10) 464 | -10/Materials | Discovered new exit (range 9) 551 | -10/Materials | Entered Mines 650 | -10/Mines | Learned Materials garrison access intel 713 | -10/Mines | Assisted by bots powering up and referring to "LRC-V3" 806 | -10/Mines | Found a hidden stash of uninstalled traps 892 | -10/Mines | Assembled infested the area 1569 | -10/Mines | Discovered new exit (range 9) 2179 | -10/Mines | Discovered new exit (range 15) 2194 | -10/Mines | Learned location of Storage (-9) 2211 | -10/Mines | Entered Materials 2211 | -9/Materials | Evolved 2 slots: Utility x1, Weapon x1 2502 | -9/Materials | Build established: Tank 2562 | -9/Materials | Discovered new exit (range 12) 2637 | -9/Materials | Discovered new exit (range 16) 2953 | -9/Materials | Discovered new exit (range 14) 3436 | -9/Materials | Build established: Hauler-Tank 3640 | -9/Materials | Identified exit to Storage 3817 | -9/Materials | Identified exit to Materials 3907 | -9/Materials | Build established: Hauler-Gunner 3941 | -9/Materials | Discovered exit to Materials (range 15) 4152 | -9/Materials | Identified exit to Mines 4234 | -9/Materials | Build established: Hauler-Tank 4297 | -9/Materials | Repaired Imp. Assault Rifle 4425 | -9/Materials | Central database locked down 4453 | -9/Materials | Entered Mines 4574 | -9/Mines | Received a Rocket Launcher from a helpful Derelict 4759 | -9/Mines | Build established: Hauler-Mutant 5069 | -9/Mines | Discovered exit to Materials (range 15) 5227 | -9/Mines | Learned Materials emergency access door positions 5303 | -9/Mines | Discovered exit to Materials (range 4) 5567 | -9/Mines | Deemed a non-threat by the Exiles lab entrance 5569 | -9/Mines | Discovered new exit (range 5) 5576 | -9/Mines | Entered Exiles 5620 | -9/Exiles | Met 8R-AWN 5650 | -9/Exiles | Met EX-HEX 5747 | -9/Exiles | Met EX-DEC 5776 | -9/Exiles | Learned location of Zion (-7) 5808 | -9/Exiles | Met EX-BIN 5835 | -9/Exiles | Aligned with FarCom system 5837 | -9/Exiles | Given EX-Vault access code 5879 | -9/Exiles | Opened EX-Vault 5925 | -9/Exiles | Warned to stay clear of 0b10 Research branches 6084 | -9/Exiles | Discovered new exit (range 12) 6400 | -9/Exiles | Build established: Mutant 6503 | -9/Exiles | Attacked by the Exiles 6674 | -9/Exiles | Destroyed 8R-AWN 6681 | -9/Exiles | Lost 5 parts (1p1n1u2w) 6683 | -9/Exiles | Found Prototype Ballistic Gun 6684 | -9/Exiles | Identified 8R-AWN's Boregun 6845 | -9/Exiles | Core integrity fell below 50% 7082 | -9/Exiles | Destroyed EX-DEC 7105 | -9/Exiles | Destroyed EX-HEX 7109 | -9/Exiles | Destroyed EX-BIN 7582 | -9/Exiles | Build established: Hauler-Mutant 7649 | -9/Exiles | Entered Mines 7661 | -8/Mines | Discovered exit to Materials (range 10) 8367 | -8/Mines | Discovered exit to Materials (range 8) 8779 | -8/Mines | Entered Materials 8779 | -8/Materials | Evolved 2 slots: Propulsion x1, Utility x1 8781 | -8/Materials | Loaded intel: 1 garrison access location 8832 | -8/Materials | Repaired Hrd. Light Armor Plating 9391 | -8/Materials | Discovered new exit (range 6) 9579 | -8/Materials | First assault squad dispatched 10064 | -8/Materials | Lost 4 parts (2n2w) 10307 | -8/Materials | Core integrity fell below 50% 10413 | -8/Materials | Discovered new exit (range 5) 10422 | -8/Materials | Entered Factory 10422 | -7/Factory | Evolved 2 slots: Utility x2 10753 | -7/Factory | Lost 3 parts (1p2w) 10926 | -7/Factory | Identified exit to Lower Caves 12027 | -7/Factory | Entered Lower Caves 12076 | -7/Lower Caves | Build established: Hauler-Tank 12328 | -7/Lower Caves | Encountered a Warlord checkpoint 12441 | -7/Lower Caves | Build established: Hauler-Mutant 12703 | -7/Lower Caves | Learned location of Extension (-6) 12791 | -7/Lower Caves | Discovered new exit (range 8) 12833 | -7/Lower Caves | Entered another Lower Caves area 12842 | -7/Lower Caves | Learned 4 Factory zone layouts 13049 | -7/Lower Caves | Learned location of 1 exit from Factory 13049 | -7/Lower Caves | Learned Factory security intel 13049 | -7/Lower Caves | Learned Research security intel 13049 | -7/Lower Caves | Learned Extension security intel 13237 | -7/Lower Caves | Discovered new exit (range 8) 13253 | -7/Lower Caves | Entered Zion 13300 | -7/Zion | Acquired unknown access codes intercepted by a Zionite 13370 | -7/Zion | Given the Hacking Drone Bay 13392 | -7/Zion | System corruption cleaned by Quarantine Array 13495 | -7/Zion | Visited the Megawrench Repair Shop 13621 | -7/Zion | Found Prototype Launcher 13621 | -7/Zion | Identified Rocket Array 13776 | -7/Zion | Learned location of Quarantine (-3) 14656 | -7/Zion | Megawrench repaired 11 parts 17252 | -7/Zion | Discovered new exit (range 18) 17289 | -7/Zion | Entered Proximity Caves 17497 | -6/Proximity Caves | Attracted the attention of an 0b10 checkpoint 17551 | -6/Proximity Caves | Destroyed 7 combat bots 17806 | -6/Proximity Caves | Build established: Hauler-Tank 18031 | -6/Proximity Caves | Discovered new exit (range 5) 18042 | -6/Proximity Caves | Entered Factory 18042 | -6/Factory | Evolved 2 slots: Utility x2 18043 | -6/Factory | Identified exit to Factory 18044 | -6/Factory | Identified exit to Lower Caves 18700 | -6/Factory | Garrison activated, responded to threat 19708 | -6/Factory | Fabricated Lrn. Sensor Array? 19969 | -6/Factory | Identified exit to Extension 20234 | -6/Factory | Entered Extension 20234 | -6/Extension | Accompanied by 1 ally 20265 | -6/Extension | Build established: Hauler-Mutant 20387 | -6/Extension | Rescued a captive Derelict 20387 | -6/Extension | Rescued a captive Derelict 20480 | -6/Extension | Repaired Prc. Shock Rifle 20515 | -6/Extension | Rescued a captive Derelict 20516 | -6/Extension | Rescued a captive Derelict 20556 | -6/Extension | Rescued A7 20858 | -6/Extension | Spotted B-75 Beast 20863 | -6/Extension | Destroyed B-75 Beast 20884 | -6/Extension | Spotted B-75 Beast 20903 | -6/Extension | Allies destroyed B-75 Beast 20909 | -6/Extension | Disrupted transfer network 21122 | -6/Extension | Discovered exit to Factory (range 16) 21122 | -6/Extension | Discovered new exit (range 16) 21150 | -6/Extension | Build established: Scavenger-Tank 21181 | -6/Extension | Identified exit to Cetus 21190 | -6/Extension | Entered Cetus 21190 | -6/Cetus | Accompanied by 3 allies (A7) 21195 | -6/Cetus | Acquired a Cetus Manufacturing Module code from A7 21214 | -6/Cetus | Spotted Cetus Guard 21214 | -6/Cetus | Spotted Cetus Guard 21218 | -6/Cetus | Spotted Cetus Guard 21221 | -6/Cetus | Destroyed Cetus Guard 21229 | -6/Cetus | Allies destroyed Cetus Guard 21229 | -6/Cetus | Spotted Cetus Guard 21230 | -6/Cetus | Destroyed Cetus Guard 21235 | -6/Cetus | Destroyed Cetus Guard 21313 | -6/Cetus | Cetus Manufacturing Module disabled 21424 | -6/Cetus | Escorted A7 to Cetus Mainframe 21445 | -6/Cetus | Discovered new exit (range 15) 21470 | -6/Cetus | Identified exit to Archives 21473 | -6/Cetus | Entered Archives 21473 | -6/Archives | Accompanied by 2 allies (A7) 21478 | -6/Archives | Received a hacking code to weaken MAIN.C 21502 | -6/Archives | Met Zhirov 21508 | -6/Archives | Reinforcements dispatched to Archives 21522 | -6/Archives | Read partially decrypted archive contents 21529 | -6/Archives | Discovered new exit (range 13) 21549 | -6/Archives | Identified exit to Hub_04(d) 21553 | -6/Archives | Reinforcements dispatched to Archives 21555 | -6/Archives | Entered Hub_04(d) 22060 | -6/Hub_04(d) | Discovered exit to Factory (range 15) 22772 | -6/Hub_04(d) | Discovered exit to Factory (range 8) 22823 | -6/Hub_04(d) | Network Hub disabled 22823 | -6/Hub_04(d) | Network Hub disabled 22826 | -6/Hub_04(d) | Entered Factory 22826 | -5/Factory | Evolved 2 slots: Propulsion x1, Utility x1 22827 | -5/Factory | Identified exit to Upper Caves 23879 | -5/Factory | Entered Upper Caves 24173 | -5/Upper Caves | Build established: Hauler-Mutant 24683 | -5/Upper Caves | Discovered new exit (range 12) 24706 | -5/Upper Caves | Identified exit to Upper Caves 24709 | -5/Upper Caves | Entered another Upper Caves area 25157 | -5/Upper Caves | Encountered a Warlord checkpoint 25489 | -5/Upper Caves | Discovered new exit (range 5) 25500 | -5/Upper Caves | Identified exit to Zhirov 25730 | -5/Upper Caves | Entered Zhirov 25730 | -5/Zhirov | Discovered new exit (range 3) 25797 | -5/Zhirov | Learned location of Testing (-2) 25797 | -5/Zhirov | Learned location of Command (-1) 25846 | -5/Zhirov | Found Alien Artifact 25846 | -5/Zhirov | Identified Integrated Dissipator 25846 | -5/Zhirov | Installed Integrated Dissipator, increased core heat dissipation (+20) 25947 | -5/Zhirov | Found Alien Artifact 26016 | -5/Zhirov | Identified exit to Proximity Caves 26017 | -5/Zhirov | Entered Proximity Caves 26678 | -4/Proximity Caves | Discovered new exit (range 14) 26696 | -4/Proximity Caves | Identified exit to Factory 26714 | -4/Proximity Caves | Entered Factory 26714 | -4/Factory | Evolved 2 slots: Power x1, Utility x1 26715 | -4/Factory | Identified exit to Research 26819 | -4/Factory | Found Prototype Hackware 26833 | -4/Factory | Found Quantum Capacitor 27221 | -4/Factory | Identified exit to Upper Caves 27221 | -4/Factory | Identified exit to Armory 27712 | -4/Factory | Fabricated Biometal Heavy Treads? 27915 | -4/Factory | Fabricated Exp. Sensor Array? 28128 | -4/Factory | Repaired Imp. KE Penetrator? 28177 | -4/Factory | Repaired Centrium Medium Armor Plating? 28249 | -4/Factory | Repaired Imp. KE Penetrator 28287 | -4/Factory | Repaired Broken Imp. KE Penetrator 28364 | -4/Factory | Repaired Quantum Reactor? 28636 | -4/Factory | Repaired Centrium Heavy Treads? 29066 | -4/Factory | Repaired Broken Enh. Fission Core 29416 | -4/Factory | Sucked down chute 29416 | -4/Factory | Entered Waste 29462 | -4/Waste | Destroyed C-40 Crusher 29490 | -4/Waste | Found Damper Plating 29503 | -4/Waste | Destroyed C-40 Crusher 29590 | -4/Waste | Destroyed C-40 Crusher 29601 | -4/Waste | Destroyed C-40 Crusher 29652 | -4/Waste | Found Damper Plating 29657 | -4/Waste | Found Damper Plating 29675 | -4/Waste | Destroyed C-40 Crusher 29722 | -4/Waste | Spotted C-40 Crusher 29725 | -4/Waste | Destroyed C-40 Crusher 30011 | -4/Waste | Build established: Hauler-Skirmisher 30093 | -4/Waste | Discovered new exit (range 12) 30115 | -4/Waste | Identified exit to Factory 30233 | -4/Waste | Entered Factory 31002 | -4/Factory | Build established: Hauler-Mutant 31030 | -4/Factory | Spotted B-86 Titan 31059 | -4/Factory | Destroyed B-86 Titan 32157 | -4/Factory | Destroyed 7 combat bots 32497 | -4/Factory | Fabricated Exp. Signal Interpreter? 32552 | -4/Factory | Local fabrication network quarantined 32733 | -4/Factory | First assault squad dispatched 32758 | -4/Factory | Entered Upper Caves 32760 | -4/Upper Caves | Attracted the attention of an 0b10 checkpoint 33307 | -4/Upper Caves | Spotted B-86 Titan 33435 | -4/Upper Caves | Learned Research stockpile data 33669 | -4/Upper Caves | Discovered new exit (range 11) 33872 | -4/Upper Caves | Identified exit to Upper Caves 33876 | -4/Upper Caves | Entered another Upper Caves area 34064 | -4/Upper Caves | Discovered exit to Research (range 7) 34351 | -4/Upper Caves | Learned Research terminal intel 35070 | -4/Upper Caves | Discovered new exit (range 14) 35094 | -4/Upper Caves | Identified exit to Warlord 35204 | -4/Upper Caves | Entered Warlord 35278 | -4/Warlord | Discovered new exit (range 14) 35309 | -4/Warlord | Build established: Hauler-Tank 35559 | -4/Warlord | Learned 4 Command zone layouts 35559 | -4/Warlord | Learned 4 Command zone layouts 35559 | -4/Warlord | Learned Quarantine security intel 35559 | -4/Warlord | Learned Armory emergency access door positions 35885 | -4/Warlord | Build established: Hauler-Mutant 36000 | -4/Warlord | Met Warlord 36008 | -4/Warlord | Warlord's base attacked by MAIN.C 36047 | -4/Warlord | Found Prototype Device 36047 | -4/Warlord | Identified Thermal Barrier 36064 | -4/Warlord | Found Prototype Reactor 36064 | -4/Warlord | Identified Vortex Chain Reactor 36072 | -4/Warlord | Found Prototype Processor 36072 | -4/Warlord | Identified Exp. Targeting Computer 36081 | -4/Warlord | Found Prototype Processor 36081 | -4/Warlord | Identified Exp. Core Analyzer 36098 | -4/Warlord | Found Prototype Hackware 36358 | -4/Warlord | Warlord forces counterattacked 36392 | -4/Warlord | Spotted Striker 36399 | -4/Warlord | Destroyed Striker 36437 | -4/Warlord | Spotted Executioner 36450 | -4/Warlord | Destroyed Executioner 36459 | -4/Warlord | Spotted Executioner 36467 | -4/Warlord | Destroyed Executioner 36532 | -4/Warlord | Identified exit to Proximity Caves 36535 | -4/Warlord | Entered Proximity Caves 36978 | -3/Proximity Caves | Discovered exit to Research (range 8) 36998 | -3/Proximity Caves | Entered Research 36998 | -3/Research | Evolved 2 slots: Utility x2 36999 | -3/Research | Identified exit to Quarantine 37002 | -3/Research | Loaded intel: 21 terminal locations 37054 | -3/Research | Identified System Mapper 37301 | -3/Research | Identified Exp. System Shield 37523 | -3/Research | Found Prototype Launcher 37531 | -3/Research | Identified Mni. Smartbomb Launcher 37534 | -3/Research | Found Mni. Smartbomb Launcher 37539 | -3/Research | Found Mni. Smartbomb Launcher 37564 | -3/Research | Build established: Hacker-Mutant 37644 | -3/Research | Repaired Centrium Heavy Treads 37662 | -3/Research | Entered Quarantine 37852 | -3/Quarantine | Found Alien Artifact 38363 | -3/Quarantine | Cryocooling Duct disabled 38378 | -3/Quarantine | Ambient heat levels rising (+20) 38378 | -3/Quarantine | Non-combat units ordered to evacuate 38513 | -3/Quarantine | Found Antimissile System 38635 | -3/Quarantine | Found Alien Slashing Weapon 38638 | -3/Quarantine | Identified Sigix Broadsword 38798 | -3/Quarantine | Garrison activated, responded to threat 39070 | -3/Quarantine | Discovered new exit (range 9) 39334 | -3/Quarantine | Repaired Adv. Variable Charge Gun 39412 | -3/Quarantine | Found Gamma Bomb Array 39509 | -3/Quarantine | Identified Transdimensional Reconstructor 39612 | -3/Quarantine | Found Alien Artifact 39613 | -3/Quarantine | Identified Subatomic Replicator 40036 | -3/Quarantine | Identified exit to Research 40037 | -3/Quarantine | Entered Research 40037 | -2/Research | Warlord forces began assault on 0b10 40037 | -2/Research | Evolved 2 slots: Utility x1, Weapon x1 40147 | -2/Research | Research machine network offline 40329 | -2/Research | Discovered new exit (range 13) 40345 | -2/Research | Identified exit to Testing 40497 | -2/Research | Found Prototype Processor 40497 | -2/Research | Identified Exp. Melee Analysis Suite 40766 | -2/Research | Entered Testing 40865 | -2/Testing | Found Prototype Device 40867 | -2/Testing | Identified Beam Splitter 40981 | -2/Testing | Found Prototype Launcher 40982 | -2/Testing | Identified Point Singularity Launcher 41160 | -2/Testing | Spotted Striker 42000 | -2/Testing | Repaired Helical Railgun? 42626 | -2/Testing | Found Prototype Protection 42634 | -2/Testing | Found Prototype Protection 42717 | -2/Testing | Discovered new exit (range 5) 42724 | -2/Testing | Identified exit to Access 42864 | -2/Testing | Found Prototype Ballistic Gun 42864 | -2/Testing | Identified Hyp. Multirail 43011 | -2/Testing | Spotted PY-LU7PEPZ6NQ 43103 | -2/Testing | Fabricated Adv. Weapon Cycler (x2) 43185 | -2/Testing | Fabricated Adv. Force Field (x2) 43334 | -2/Testing | Identified SHELL Armor 43369 | -2/Testing | Spotted Fortress 43485 | -2/Testing | Discovered new exit (range 5) 43490 | -2/Testing | Identified exit to Section 7 43491 | -2/Testing | Entered Section 7 43553 | -2/Section 7 | Identified Hvy. Regenerative Plating 43557 | -2/Section 7 | Spotted S7 Guard 43572 | -2/Section 7 | Destroyed S7 Guard 43595 | -2/Section 7 | Found Alien Artifact 43625 | -2/Section 7 | Identified Integrated Heat Negator 43625 | -2/Section 7 | Installed Integrated Heat Negator, increased core heat dissipation (+40) 43925 | -2/Section 7 | Found Alien Artifact 44036 | -2/Section 7 | Identified Integrity Redistributor 44075 | -2/Section 7 | Spotted S7 Guard 44086 | -2/Section 7 | Destroyed S7 Guard 44119 | -2/Section 7 | Found Alien Artifact 44257 | -2/Section 7 | Identified Core Membrane 44257 | -2/Section 7 | Installed Core Membrane, gained immunity to corruption 44684 | -2/Section 7 | Found Alien Artifact 44806 | -2/Section 7 | Spotted S7 Guard 44831 | -2/Section 7 | Spotted S7 Guard 44834 | -2/Section 7 | Destroyed S7 Guard 44844 | -2/Section 7 | Destroyed S7 Guard 44886 | -2/Section 7 | Found Alien Artifact 44938 | -2/Section 7 | Identified Integrated Reactor 44938 | -2/Section 7 | Installed Integrated Reactor, increased core energy generation (+10) 44940 | -2/Section 7 | Found Alien Artifact 45309 | -2/Section 7 | Identified Core Regenerator 45309 | -2/Section 7 | Identified Integrated Singularity Reactor 45311 | -2/Section 7 | Used Subatomic Replicator to replicate Integrated Singularity Reactor 45313 | -2/Section 7 | Installed Integrated Singularity Reactor, increased core energy generation (+20) 45316 | -2/Section 7 | Installed Integrated Singularity Reactor, increased core energy generation (+20) 45602 | -2/Section 7 | Found Prototype Device 45602 | -2/Section 7 | Identified EM Dispersion Field 45694 | -2/Section 7 | Found Integrated Reactor 45694 | -2/Section 7 | Installed Integrated Reactor, increased core energy generation (+10) 45805 | -2/Section 7 | Discovered exit to Access (range 15) 45991 | -2/Section 7 | First assault squad dispatched 46247 | -2/Section 7 | Found Alien Artifact 46247 | -2/Section 7 | Identified Core Reset Matrix 46247 | -2/Section 7 | Used Core Reset Matrix 46251 | -2/Section 7 | Sensed 16 artifacts in vicinity 46390 | -2/Section 7 | Spotted Executioner 46391 | -2/Section 7 | Spotted Executioner 46396 | -2/Section 7 | Destroyed Executioner 46399 | -2/Section 7 | Destroyed Executioner 46460 | -2/Section 7 | Spotted B-99 Colossus 46553 | -2/Section 7 | Build established: Alien-Mutant 46626 | -2/Section 7 | Destroyed 9 combat bots 46634 | -2/Section 7 | Found Integrated Dissipator 46634 | -2/Section 7 | Installed Integrated Dissipator, increased core heat dissipation (+20) 46637 | -2/Section 7 | Found Integrated Dissipator 46637 | -2/Section 7 | Installed Integrated Dissipator, increased core heat dissipation (+20) 46640 | -2/Section 7 | Found Integrated Dissipator 46640 | -2/Section 7 | Installed Integrated Dissipator, increased core heat dissipation (+20) 46700 | -2/Section 7 | Found LRC Armor 46700 | -2/Section 7 | Installed LRC Armor, increased core integrity (+250) 46709 | -2/Section 7 | Found LRC Storage 46709 | -2/Section 7 | Installed LRC Storage, increased inventory capacity (+2) 46712 | -2/Section 7 | Found LRC Storage 46712 | -2/Section 7 | Installed LRC Storage, increased inventory capacity (+2) 46940 | -2/Section 7 | Found Transdimensional Reconstructor 46947 | -2/Section 7 | Found Matter Drive 47115 | -2/Section 7 | Discovered exit to Access (range 5) 47121 | -2/Section 7 | Entered Access 47121 | -1/Access | Evolved 2 slots: Utility x2 47339 | -1/Access | Identified exit to Command 48020 | -1/Access | Found Quantum Capacitor 48245 | -1/Access | Entered Command 48874 | -1/Command | Spotted M Guard 48874 | -1/Command | Spotted M Guard 48874 | -1/Command | Spotted Combat Programmer 48887 | -1/Command | Destroyed M Guard 48893 | -1/Command | Destroyed M Guard 48901 | -1/Command | Destroyed Combat Programmer 48905 | -1/Command | Spotted Combat Programmer 48912 | -1/Command | Destroyed Combat Programmer 48912 | -1/Command | All MAIN.C guards destroyed 48941 | -1/Command | Found Prototype Device 48941 | -1/Command | Identified AEGIS Remote Shield 48956 | -1/Command | Found Zero-point Reactor 48963 | -1/Command | Found Zero-point Reactor 48968 | -1/Command | Found Zero-point Reactor 48975 | -1/Command | Found Zero-point Reactor 48991 | -1/Command | Found Prototype Launcher 48992 | -1/Command | Identified Hellfire Missile Launcher 48995 | -1/Command | Found Prototype Launcher 48995 | -1/Command | Identified Ragnarok Missile Launcher 49003 | -1/Command | Found Prototype Processor 49003 | -1/Command | Identified Exp. Targeting Computer 49038 | -1/Command | First assault squad dispatched 49199 | -1/Command | Met MAIN.C 49206 | -1/Command | 0b10 Conduit disabled 49246 | -1/Command | Destroyed MAIN.C Shell 49249 | -1/Command | MAIN.C activated Command garrisons 49285 | -1/Command | Destroyed MAIN.C 49291 | -1/Command | Found Prototype Protection 49295 | -1/Command | Found Prototype Processor 51702 | -1/Command | Spotted B-99 Colossus 51731 | -1/Command | Destroyed B-99 Colossus 51776 | -1/Command | Found Prototype Device 51776 | -1/Command | Identified Exp. Thermal Defense Suite 51780 | -1/Command | Discovered new exit (range 12) 51917 | -1/Command | Found Gamma Refractor 51939 | -1/Command | Found Prototype Reactor 51939 | -1/Command | Identified Vortex Chain Reactor 51978 | -1/Command | Found Prototype Device 51978 | -1/Command | Identified Exp. ECM Suite 51982 | -1/Command | Found EM Dispersion Field 51989 | -1/Command | Found Prototype Device 51989 | -1/Command | Identified Exp. Weapon Cycler 51993 | -1/Command | Found Prototype Device 51993 | -1/Command | Identified Adv. Particle Accelerator 52094 | -1/Command | Identified Exp. Target Analyzer 52291 | -1/Command | Identified Exp. Powered Armor 52677 | -1/Command | Found Prototype Device 52677 | -1/Command | Identified Thermal Barrier 52895 | -1/Command | Discovered new exit (range 9) 53375 | -1/Command | Phase Generator disabled 54768 | -1/Command | Found Unknown Device 54768 | -1/Command | Identified Adv. Force Booster 56577 | -1/Command | Found Zero-point Reactor 56658 | -1/Command | Warped through subspace to slip node 56658 | -1/Command | Discovered new exit (range 4) 56666 | -1/Command | Entered Access_0 56667 | -1/Access_0 | Sensed 4 artifacts in vicinity 56669 | -1/Access_0 | Met Architect 56684 | -1/Access_0 | Destroyed A8 56687 | -1/Access_0 | Architect warped through subspace 56699 | -1/Access_0 | Build established: Alien-Gunner 56724 | -1/Access_0 | Architect warped through subspace 56755 | -1/Access_0 | Architect warped through subspace 56778 | -1/Access_0 | Architect warped through subspace 56803 | -1/Access_0 | Architect warped through subspace 56843 | -1/Access_0 | Architect warped through subspace 56866 | -1/Access_0 | Architect warped through subspace 56868 | -1/Access_0 | Found Prototype Device 56869 | -1/Access_0 | Identified Desublimator 56888 | -1/Access_0 | Used Integrity Redistributor, redistributed integrity from core (-204) 56889 | -1/Access_0 | Used Core Regenerator, restored core integrity (+462) 56912 | -1/Access_0 | Architect warped through subspace 56938 | -1/Access_0 | Architect warped through subspace 56967 | -1/Access_0 | Architect warped through subspace 56996 | -1/Access_0 | Subspace Access Node disabled 57012 | -1/Access_0 | Architect warped through subspace 57042 | -1/Access_0 | Architect warped through subspace 57069 | -1/Access_0 | Architect warped through subspace 57084 | -1/Access_0 | A6 warped into view 57105 | -1/Access_0 | Destroyed A6 57111 | -1/Access_0 | Architect warped through subspace 57115 | -1/Access_0 | Found Prototype Protection 57115 | -1/Access_0 | Identified Med. Regenerative Plating 57136 | -1/Access_0 | Architect warped through subspace 57158 | -1/Access_0 | Architect warped through subspace 57190 | -1/Access_0 | Architect warped through subspace 57221 | -1/Access_0 | Architect warped through subspace 57279 | -1/Access_0 | Architect warped through subspace 57286 | -1/Access_0 | Found Desublimator 57289 | -1/Access_0 | Found Exp. Weapon Cycler 57323 | -1/Access_0 | Architect warped through subspace 57350 | -1/Access_0 | Architect warped through subspace 57399 | -1/Access_0 | Subspace Access Node disabled 57405 | -1/Access_0 | Architect warped through subspace 57432 | -1/Access_0 | Architect warped through subspace 57462 | -1/Access_0 | Architect warped through subspace 57498 | -1/Access_0 | Architect warped through subspace 57506 | -1/Access_0 | Lost 3 parts (1n1u1w) 57530 | -1/Access_0 | Architect warped through subspace 57554 | -1/Access_0 | Found Desublimator 57560 | -1/Access_0 | Architect warped through subspace 57579 | -1/Access_0 | Triggered Gamma Refractor 57579 | -1/Access_0 | Subspace Access Node disabled 57589 | -1/Access_0 | Architect warped through subspace 57613 | -1/Access_0 | Subspace Access Node disabled 57762 | -1/Access_0 | Found Exp. Powered Armor 57769 | -1/Access_0 | Found Exp. Powered Armor 57812 | -1/Access_0 | Found Sigix Corpse 57879 | -1/Access_0 | A5 warped into view 57913 | -1/Access_0 | Found Prototype Processor 57913 | -1/Access_0 | Identified Exp. Melee Analysis Suite 58030 | -1/Access_0 | Found Prototype Device 58030 | -1/Access_0 | Identified Exp. Force Field 58038 | -1/Access_0 | Found Exp. Force Field 58622 | -1/Access_0 | Found Integrated Reactor 58622 | -1/Access_0 | Installed Integrated Reactor, increased core energy generation (+10) 58688 | -1/Access_0 | Destroyed A5 58991 | -1/Access_0 | Found Exp. Shield Generator 58995 | -1/Access_0 | Found Prototype Processor 58995 | -1/Access_0 | Identified Spectral Analyzer 59027 | -1/Access_0 | A4 warped into view 59041 | -1/Access_0 | Destroyed A4 59080 | -1/Access_0 | Destroyed A2 59103 | -1/Access_0 | Extracted Singularity Gate Test 138-C access codes from A2's data core 59297 | -1/Access_0 | Found Core Expander 59297 | -1/Access_0 | Installed Core Expander, added new Utility slot 59350 | -1/Access_0 | Started Test 138-B, establishing a local singularity 59357 | -1/Access_0 | Singularity Gate disabled 60055 | -1/Access_0 | A3 warped into view 60272 | -1/Access_0 | Destroyed A3 61561 | -1/Access_0 | Destroyed Architect 61577 | -1/Access_0 | Extracted unknown sensor trigger ID from Architect's data core 61581 | -1/Access_0 | Found Hpw. Transdimensional Reconstructor 61581 | -1/Access_0 | Warped through subspace to slip node 61581 | -1/Access_0 | Discovered new exit (range 8) 61592 | *** | Heading to fleet! Last Messages --------------- 61556_ Slug penetrates Architect. 61556_ HV Slug penetrates Architect. 61556_ Architect suffers critical hit. 61559_ HV Slug penetrates Architect. 61559_ Architect suffers critical hit. 61559_ Slug penetrates Architect. 61559_ HV Slug penetrates Architect. 61559_ Architect knocked back. 61559_ HV Slug penetrates Architect. 61561_ Architect knocked back. 61561_ HV Slug penetrates Architect. 61561_ Architect: "Defeated by a malfunctioning replica of a piece of alien starship?! You've got*fzzt* be kiddi*bzzz*" 61561_ Architect destroyed. 61575_ Acquired 65 matter. 61577_ Acquired data core, extracted unknown sensor trigger ID. 61581_ Acquired Hpw. Transdimensional Reconstructor. 61581_ Warped through subspace, drawn to slip node. 61581_ EXIT=FOUND [Achievement: Home At Last?] Map ----- +----------------------------------------------------+ | | | | | | | | | | | | | | | | | | | | | | | | | | | | | | | | | ?????????????????????????????????????????????????? | | ?????????????????????????????????????????????????? | | ?????????????????????????????????????????????????? | | ?????????????????????????????????????????????????? | | ?????????????????????????????????????????????????? | | ?????????????????????????????????????????????????? | | ????????????????????????###??????????????????????? | | ???????????????????????## ##?????????????????????? | | ???????????????????????# #?????????????????????? | | ???????????????????????# @ #?????????????????????? | | ??????????????????????## #?????????????????????? | | ??????????????????????# #?????????????????????? | | ??????????????????????# ##?????????????????????? | | ??????????????????????## #?????????????????????? | | ??????????????????????# #?????????????????????? | | ??????????????????????# ##?????????????????????? | | ??????????????????????# < #?????????????????????? | | ??????????????????????# ##?????????????????????? | | ??????????????????????## #??????????????????????? | | ???????????????????????####??????????????????????? | | ?????????????????????????????????????????????????? | | ?????????????????????????????????????????????????? | | ?????????????????????????????????????????????????? | | ?????????????????????????????????????????????????? | | ?????????????????????????????????????????????????? | | ?????????????????????????????????????????????????? | | ?????????????????????????????????????????????????? | | ?????????????????????????????????????????????????? | | ?????????????????????????????????????????????????? | | ?????????????????????????????????????????????????? | | ?????????????????????????????????????????????????? | | ?????????????????????????????????????????????????? | | ?????????????????????????????????????????????????? | | ?????????????????????????????????????????????????? | +----------------------------------------------------+ Best States ------------- Heat Dissipation 172 Energy Generation 131 Energy Capacity 1600 Matter Stores 800 Matter Capacity 800 Sight Range 24 Robot Scan Range 30 Terrain Scan Density 10 Jamming Range 16 Armor Coverage 3800 Resistance: KI 30 Resistance: TH 75 Resistance: EM 90 Core Shielding 20 Propulsion Shielding 33 Utility Shielding 66 Weapon Shielding 66 Point Defense Rating 240 Weapon Cycling 30 Phase Shifting 15 Evasion (%) 40 Targeting Accuracy 12 Target Analysis 12 Armor Integrity Analysis 66 Recoil Reduction 4 Matter Filtering 50 Kinecelleration 40 Salvage Targeting 4 Offensive Hacking 20 Defensive Hacking 16 Item Schematics ----------------- None Robot Schematics ------------------ None Fabricated ------------ Lrn. Sensor Array | x1 | -6/Factory Biometal Heavy Treads | x2 | -4/Factory | Preloaded Exp. Sensor Array | x1 | -4/Factory Exp. Signal Interpreter | x1 | -4/Factory Adv. Weapon Cycler | x2 | -2/Testing Adv. Force Field | x2 | -2/Testing Alien Tech Used ----------------- Integrated Dissipator Sigix Broadsword Subatomic Replicator Integrated Heat Negator Core Membrane Integrated Reactor Integrated Singularity Reactor Core Reset Matrix LRC Armor LRC Storage Matter Drive Transdimensional Reconstructor Integrity Redistributor Core Regenerator Core Expander High-powered Transdimensional Reconstructor Achievements -------------- Home At Last? Challenges ------------ None Game ------ Seed MolecularGrenadeAxe Manual? 0 Play Time 11:03:23 Cumulative 329.8 hours Start 2021.01.23 @ 23:10:22 End 2021.01.26 @ 21:26:01 Sessions 5 Manual Loads 0 Difficulty Rogue Special Mode None Game No. 169 Rogue 169 Adventurer 0 Explorer 0 Win Type 2 Total 9 Types 1/5/1/0/0/0/2/0/0 Lore% 85 Gallery% 86 Achievement% 68 Wizard Run 0 Options --------- ASCII 1 Keyboard 1 Movement Vi Keybinds 0 Fullscreen 1 Font 16/Terminus Map View 75x55 Tactical HUD 1 Map Filters NONE Filters NONE Steam 1 RUN: cb918498-8c97-4378-904c-ad514edac8b0